{"text_format":"3","workbook":"xlsx","n_sheets":1,"sheets":["05.3 - MC BOQ"],"read":"whole","date_system":"1900"}

{"sheet":"05.3 - MC BOQ","index":0,"n_rows":1617,"n_cols":9,"rows_kept":1617}
["ITEM NO",{"$nulls":4},"QUANTITY","RATE","AMOUNT"]
[]
[null,null,"BILL NO. 1"]
[]
[null,null,"ALTERATIONS"]
[]
[null,null,"NOTE:  Tenderers are advised to study the Model Preambles for Trades before pricing this bill"]
[]
[null,null,"NOTE:\tTenderers are advised to study the Lab \tSpecialist and Architectural specification \tpricing this bill"]
[]
[null,null,"SUPPLEMENTARY PREAMBLES"]
[]
[null,null,"View site"]
[]
[null,null,"Before submitting his tender the contractor shall visit the site and satisfy himself as to the nature and extent of the work to be done and the value of the materials contained in the buildings or portions of the buildings to be demolished.  No claim for any variations of the contract sum in respect of the nature and extent of the work or of inferior or damaged materials will be entertained"]
[]
[null,null,"Explosives"]
[]
[null,null,"No explosives whatsoever may be used in demolitions"]
[]
[null,null,"Generally"]
[]
[null,null,"The contractor shall carry out the whole of the works with as little mess and noise as possible and with a minimum of disturbance to tenants in the building and to adjoining premises and their tenants.  He shall provide proper protection and provide, erect and remove when directed, any temporary tarpaulins that may be necessary during the progress of the works, all to the satisfaction of the principal agent"]
[]
[null,null,"Doors, fanlights, windows, fittings, frames, linings, etc which are to be re-used shall be thoroughly overhauled before re-fixing including taking off, easing and rehanging, cramping up, re-wedging as required and making good cramps, dowels, etc, and oiling, adjusting and repairing ironmongery as necessary, replacing any glass damaged in removal or subsequently and stopping up all nail and screw holes with tinted plastic wood to match timber, unless otherwise described. Re-painting or re-varnishing is given separately"]
[]
[null,null,"Making good of finishes shall include making good of the brick and concrete surfaces onto which the new finishes are applied, where necessary"]
[]
[null,null,"The contractor will be required to take all dimensions affecting the existing buildings on the site and he will be held solely responsible for the accuracy of all such dimensions where used in the manufacture of new items (doors, windows, fittings, etc)"]
[]
[null,null,"Unless otherwise stated, the whole of the old materials arising from the alterations shall become the property of the contractor and shall be carted away from the site immediately it becomes available and credit shall be allowed for it In pricing, credits for old materials shall be offset against the charge so as to result in a net figure in the amount column"]
[]
[null,null,"Prices for the demolition of any structure shall include for its demolition complete with all surface finishes such as plaster, screeds, etc all attached items of joinery such as skirtings, etc and all reinforcement, conduit, pipes, lintels, etc built into that portion of the structure"]
[]
[null,null,"The whole of the demolitions shall be carried out with as little mess and noise as possible and with a minimum of disturbance to adjoining premises and their occupants. The site, structures and materials shall be kept well watered during the operations to prevent dust and all temporary tarpaulins, dust and weatherproof screens, barriers and temporary plumbing that may be necessary during the progress of the demolitions, shall be erected and maintained, all to the satisfaction of the architect and the municipal authorities, and removed when directed"]
[]
[null,null,"No claims for extras whatsoever will be entertained and no extension of time will be allowed should the contractor be prohibited by order of the police, the courts or other public bodies from using mechanical equipment, compressors, pneumatic drills or other noisy means of executing the demolitions"]
[]
[null,null,"Provide, erect and remove when directed all incidental shoring, needling, strutting, etc that may be necessary while carrying out any portion of the works to ensure stability of the premises with suitable and substantial timber and other materials. Prices for all items of demolition to form openings shall include for the provision of such support"]
[]
[null,null,"The contractor shall comply with all regulations and by-laws in force in connection with the use of electrical, mechanical and other equipment"]
[]
[null,null,"Allow for watering the works with a jet or spray sufficiently to prevent any nuisance from dust during the alterations or demolitions"]
[]
[null,null,"At the commencement of the demolition work the contractor shall give notice to the employer to whose premises any services such as water, telephone, electric power, etc are carried via or supported by the buildings to be demolished and shall ensure that such services are maintained without interruption"]
[]
[null,null,"The contractor shall remove from the site all drains, pipes, conduits, wire and other obstructions which are encountered in demolishing. He shall plug and seal all water pipes, drains, pipes or other conduits remaining below ground level and ensure that no electric cables or wires remaining underground are alive.The contractor shall consult the architect before cutting off the water, fire service and sewerage systems"]
[]
[null,null,"In taking down and removing existing work the utmost care shall be observed to avoid any structural or other damage to the remaining portions of the building. The contractor shall cover up and protect from injury all work not removed and shall make good at his own expense any damage that may occur"]
[]
[null,null,"Provide and erect all casings and protection for and cover up all existing fittings, doors, windows, joinery work, walls, floors, etc. not disturbed during the alterations and clear away and make good at completion"]
[]
[null,null,"The contractor shall collect and cart away all material and debris resulting from the demolitions. At completion of the demolition work the contractor shall leave the site in a thoroughly safe and sanitary condition to the complete satisfaction of the architect and the municipal authorities."]
[]
[null,null,"TEMPORARY FLOOR, ETC"]
[]
[null,null,"Temporary floor, etc including removal"]
[]
[" A",null,"Existing steel floor to be cladded complete with approved plywood before specified floor finish can be installed, including corners, ends, etc. Refer to architect's drawing number 2022_CSIR_A.03.1.2",null,"m²",{"v":151,"d":"151 "},null,{"$f":"ROUND(F59*G59,2)","v":{"v":0,"d":"0.00"}}]
[]
[null,null,"REMOVAL OF EXISTING WORK"]
[]
[null,null,"Breaking down and removing brickwork etc"]
[]
[" B",null,"Half Brick wall",null,"m²",{"v":14,"d":"14 "},null,{"$f":"ROUND(F65*G65,2)","v":{"v":0,"d":"0.00"}}]
[]
[" C",null,"One Brick wall",null,"m²",{"v":25,"d":"25 "},null,{"$f":"ROUND(F67*G67,2)","v":{"v":0,"d":"0.00"}}]
[]
[" D",null,"280mm Hollow walls of two half brick skins",null,"m²",{"v":9,"d":"9 "},null,{"$f":"ROUND(F69*G69,2)","v":{"v":0,"d":"0.00"}}]
[]
[null,null,"Breaking up and removing reinforced concrete, including cutting off and removing reinforcement"]
[{"$nulls":8},"CSIR FuturePharma 2022!"]
[" E",null,"150mm Thick surface beds, etc",null,"m²",{"v":29,"d":"29 "},null,{"$f":"ROUND(F73*G73,2)","v":{"v":0,"d":"0.00"}}]
[]
[" F",null,"Cut 150mm surface bed to break out",null,"m",{"v":59,"d":"59 "},null,{"$f":"ROUND(F75*G75,2)","v":{"v":0,"d":"0.00"}}]
[]
[" G",null,"Beams",null,"m³",{"v":1,"d":"1 "},null,{"$f":"ROUND(F77*G77,2)","v":{"v":0,"d":"0.00"}}]
[]
[" H",null,"Cut 230mm thick up stand beam to break out",null,"m",{"v":5,"d":"5 "},null,{"$f":"ROUND(F79*G79,2)","v":{"v":0,"d":"0.00"}}]
[]
[null,null,"Taking down and removing roofs, floors, panelling, ceilings, partitions, etc"]
[]
[" J",null,"Lay-in Ceilings including removing all associated cornice, grid, etc.",null,"m²",{"v":395,"d":"395 "},null,{"$f":"ROUND(F83*G83,2)","v":{"v":0,"d":"0.00"}}]
[]
[" K",null,"Cold room ceilings including removing all associated cornice, grid, etc.",null,"m²",{"v":15,"d":"15 "},null,{"$f":"ROUND(F85*G85,2)","v":{"v":0,"d":"0.00"}}]
[]
[" L",null,"Drywall partitions 2500mm high, including skirtings, glazed borrowed lights, etc",null,"m",{"v":13,"d":"13 "},null,{"$f":"ROUND(F87*G87,2)","v":{"v":0,"d":"0.00"}}]
[]
[" A",null,"Cold Room panelling 2500mm high, including skirtings, glazed borrowed lights, etc",null,"m",{"v":14,"d":"14 "},null,{"$f":"ROUND(F89*G89,2)","v":{"v":0,"d":"0.00"}}]
[]
[null,null,"Hacking up/off and removing tile floor and wall finishes including removing mortar bed or backing and preparing concrete or brick surfaces for new screed, plaster or tile finishes"]
[]
[" B",null,"Tiles fixed to floors",null,"m²",{"v":46,"d":"46 "},null,{"$f":"ROUND(F93*G93,2)","v":{"v":0,"d":"0.00"}}]
[]
[" C",null,"Tiles to treads and risers of stairs",null,"m²",{"v":2,"d":"2 "},null,{"$f":"ROUND(F95*G95,2)","v":{"v":0,"d":"0.00"}}]
[]
[null,null,"Taking up / off and set aside for re-use external work"]
[]
[" D",null,"Lift up and set aside paving for re-use (Re-fixing in similar new position elsewhere measured)",null,"m²",{"v":36,"d":"36 "},null,{"$f":"ROUND(F99*G99,2)","v":{"v":0,"d":"0.00"}}]
[]
[null,null,"Taking out and removing doors, windows, etc including thresholds, sills, etc from partitioning and building opening (elsewhere measured)"]
[]
[" E",null,"Glazed aluminium window not exceeding 2.5m2",null,"No",{"v":3,"d":"3 "},null,{"$f":"ROUND(F103*G103,2)","v":{"v":0,"d":"0.00"}}]
[]
[" F",null,"Glazed aluminium window exceeding 2.5m2 not exceeding 5m2",null,"No",{"v":1,"d":"1 "},null,{"$f":"ROUND(F105*G105,2)","v":{"v":0,"d":"0.00"}}]
[]
[null,null,"Taking out and removing doors, windows, etc including thresholds, sills, etc from partitioning and prepare opening for new door, window, etc"]
[]
[" G",null,"Aluminium door and frame exceeding 2.5m2 and not exceeding 5m2",null,"No",{"v":5,"d":"5 "},null,{"$f":"ROUND(F109*G109,2)","v":{"v":0,"d":"0.00"}}]
[]
[null,null,"Taking out and removing doors, windows, etc, including thresholds, sills, etc (building up openings and making good finishes elsewhere)"]
[]
[" H",null,"Cold room door and frame not exceeding 2.5m2",null,"No",{"v":1,"d":"1 "},null,{"$f":"ROUND(F113*G113,2)","v":{"v":0,"d":"0.00"}}]
[]
[" J",null,"Timber door and steel frame not exceeding 2.5m2",null,"No",{"v":5,"d":"5 "},null,{"$f":"ROUND(F115*G115,2)","v":{"v":0,"d":"0.00"}}]
[]
[" K",null,"Glazed aluminium window not exceeding 2.5m2",null,"No",{"v":4,"d":"4 "},null,{"$f":"ROUND(F117*G117,2)","v":{"v":0,"d":"0.00"}}]
[]
[" A",null,"Glazed aluminium window exceeding 5m2 and not exceeding 7.5m\"²",null,"No",{"v":3,"d":"3 "},null,{"$f":"ROUND(F119*G119,2)","v":{"v":0,"d":"0.00"}}]
[]
[null,null,"Taking out and removing roller shutter door including thresholds, sills, etc (building up openings elsewhere)"]
[]
[" B",null,"Roller shutter door 3 000 x 4 500mm high",null,"No",{"v":1,"d":"1 "},null,{"$f":"ROUND(F123*G123,2)","v":{"v":0,"d":"0.00"}}]
[]
[null,null,"Carefully taking out and store sanitary fittings, etc including disconnecting piping from fittings  and making good floor and wall finishes (making good tiling and paintwork elsewhere)"]
[]
[" C",null,"Emergency Eye Drench Shower",null,"No",{"v":1,"d":"1 "},null,{"$f":"ROUND(F127*G127,2)","v":{"v":0,"d":"0.00"}}]
[]
[null,null,"Take up and remove wood block floor coverings, vinyl floor coverings, carpeting, etc and prepare screeds for new floor finishes"]
[]
[" D",null,"Carpeted floor covering including removing all associated adhesives, skirtings, coves, etc",null,"m²",{"v":54,"d":"54 "},null,{"$f":"ROUND(F131*G131,2)","v":{"v":0,"d":"0.00"}}]
[]
[" E",null,"Vinyl fixed to floors including removing all associated adhesives, skirtings, coves, etc",null,"m²",{"v":603,"d":"603 "},null,{"$f":"ROUND(F133*G133,2)","v":{"v":0,"d":"0.00"}}]
[]
[" F",null,"Polyscreed including making floors good to receive new floor finish",null,"m²",{"v":15,"d":"15 "},null,{"$f":"ROUND(F135*G135,2)","v":{"v":0,"d":"0.00"}}]
[]
[null,null,"Carefully taking off extractors / ducts"]
[]
[" G",null,"Carefully remove extractors / ducts from existing windows",null,"No",{"v":5,"d":"5 "},null,{"$f":"ROUND(F139*G139,2)","v":{"v":0,"d":"0.00"}}]
[]
[null,null,"Taking out/off and removing sundry metalwork"]
[]
[" H",null,"Steel balustrades from concrete stairs, including making good floor finish",null,"m",{"v":20,"d":"20 "},null,{"$f":"ROUND(F143*G143,2)","v":{"v":0,"d":"0.00"}}]
[]
[null,null,"Carefully taking off aluminium louvre and handover to th Client"]
[]
[" J",null,"Carefully take off and remove aluminium louvre with overall size 3 000 x 1 800mm high",null,"No",{"v":1,"d":"1 "},null,{"$f":"ROUND(F147*G147,2)","v":{"v":0,"d":"0.00"}}]
[]
[null,null,"OPENINGS THROUGH EXISTING WALLS"]
[]
[null,null,"Breaking out for and forming plain openings through brick walls including pre-stressed concrete lintels, making good plaster on both sides and into reveals and with unreinforced concrete thresholds with steel trowelled finish (making good paintwork elsewhere)"]
[]
[" A",null,"Opening 200mm diameter in half brick wall",null,"No",{"v":2,"d":"2 "},null,{"$f":"ROUND(F153*G153,2)","v":{"v":0,"d":"0.00"}}]
[]
[" B",null,"Opening 250 x 200mm high in half brick wall",null,"No",{"v":4,"d":"4 "},null,{"$f":"ROUND(F155*G155,2)","v":{"v":0,"d":"0.00"}}]
[]
[" C",null,"Opening 250 x 300mm high in half brick wall",null,"No",{"v":3,"d":"3 "},null,{"$f":"ROUND(F157*G157,2)","v":{"v":0,"d":"0.00"}}]
[]
[" D",null,"Opening 450mm diameter in one brick wall",null,"No",{"v":2,"d":"2 "},null,{"$f":"ROUND(F159*G159,2)","v":{"v":0,"d":"0.00"}}]
[]
[" E",null,"Opening 560mm diameter in one brick wall",null,"No",{"v":2,"d":"2 "},null,{"$f":"ROUND(F161*G161,2)","v":{"v":0,"d":"0.00"}}]
[]
[" F",null,"Opening 630mm diameter in one brick wall",null,"No",{"v":1,"d":"1 "},null,{"$f":"ROUND(F163*G163,2)","v":{"v":0,"d":"0.00"}}]
[]
[" G",null,"Opening 250 x 250mm high in one brick wall",null,"No",{"v":1,"d":"1 "},null,{"$f":"ROUND(F165*G165,2)","v":{"v":0,"d":"0.00"}}]
[]
[" H",null,"Opening 300 x 300mm high in one brick wall",null,"No",{"v":1,"d":"1 "},null,{"$f":"ROUND(F167*G167,2)","v":{"v":0,"d":"0.00"}}]
[]
[" J",null,"Opening 50mm diameter in cavity brick wall",null,"No",{"v":11,"d":"11 "},null,{"$f":"ROUND(F169*G169,2)","v":{"v":0,"d":"0.00"}}]
[]
[" K",null,"Opening 115mm diameter in cavity brick wall",null,"No",{"v":1,"d":"1 "},null,{"$f":"ROUND(F171*G171,2)","v":{"v":0,"d":"0.00"}}]
[]
[" L",null,"Opening 150mm diameter in cavity brick wall",null,"No",{"v":1,"d":"1 "},null,{"$f":"ROUND(F173*G173,2)","v":{"v":0,"d":"0.00"}}]
[]
[" M",null,"Opening 190mm diameter in cavity brick wall",null,"No",{"v":1,"d":"1 "},null,{"$f":"ROUND(F175*G175,2)","v":{"v":0,"d":"0.00"}}]
[]
[" N",null,"Opening 450mm diameter in cavity brick wall",null,"No",{"v":2,"d":"2 "},null,{"$f":"ROUND(F177*G177,2)","v":{"v":0,"d":"0.00"}}]
[]
[" P",null,"Opening 500mm diameter in cavity brick wall",null,"No",{"v":1,"d":"1 "},null,{"$f":"ROUND(F179*G179,2)","v":{"v":0,"d":"0.00"}}]
[]
[" Q",null,"Opening 560mm diameter in cavity brick wall",null,"No",{"v":2,"d":"2 "},null,{"$f":"ROUND(F181*G181,2)","v":{"v":0,"d":"0.00"}}]
[]
[" R",null,"Opening 630mm diameter in cavity brick wall",null,"No",{"v":1,"d":"1 "},null,{"$f":"ROUND(F183*G183,2)","v":{"v":0,"d":"0.00"}}]
[]
[" S",null,"Opening 250 x 200mm high in cavity brick wall",null,"No",{"v":5,"d":"5 "},null,{"$f":"ROUND(F185*G185,2)","v":{"v":0,"d":"0.00"}}]
[]
[" A",null,"Opening 300 x 500mm high in cavity brick wall",null,"No",{"v":1,"d":"1 "},null,{"$f":"ROUND(F187*G187,2)","v":{"v":0,"d":"0.00"}}]
[]
[" B",null,"Opening 400 x 300mm high in cavity brick wall",null,"No",{"v":1,"d":"1 "},null,{"$f":"ROUND(F189*G189,2)","v":{"v":0,"d":"0.00"}}]
[]
[" C",null,"Opening 400 x 450mm high in cavity brick wall",null,"No",{"v":1,"d":"1 "},null,{"$f":"ROUND(F191*G191,2)","v":{"v":0,"d":"0.00"}}]
[]
[" D",null,"Opening 600 x 300mm high in cavity brick wall",null,"No",{"v":3,"d":"3 "},null,{"$f":"ROUND(F193*G193,2)","v":{"v":0,"d":"0.00"}}]
[]
[" E",null,"Opening 600 x 500mm high in cavity brick wall",null,"No",{"v":2,"d":"2 "},null,{"$f":"ROUND(F195*G195,2)","v":{"v":0,"d":"0.00"}}]
[]
[null,null,"Breaking out for and forming openings through brick walls for new doors and frames, including pre-stressed concrete lintels, making good cement plaster on both sides and into reveals and with 20 MPa concrete thresholds with steel trowelled finish (new doors and frames and making good paintwork elsewhere)"]
[]
[" F",null,"Opening 900 x 1 600mm high in one brick wall",null,"No",{"v":1,"d":"1 "},null,{"$f":"ROUND(F199*G199,2)","v":{"v":0,"d":"0.00"}}]
[]
[" G",null,"Opening 900 x 2 100mm high in cavity brick wall",null,"No",{"v":2,"d":"2 "},null,{"$f":"ROUND(F201*G201,2)","v":{"v":0,"d":"0.00"}}]
[]
[" H",null,"Opening 1 600 x 2 100mm high in one brick wall",null,"No",{"v":1,"d":"1 "},null,{"$f":"ROUND(F203*G203,2)","v":{"v":0,"d":"0.00"}}]
[]
[" J",null,"Opening 1 840 x 2 800mm high in one brick wall",null,"No",{"v":1,"d":"1 "},null,{"$f":"ROUND(F205*G205,2)","v":{"v":0,"d":"0.00"}}]
[]
[null,null,"Breaking out for and forming openings through brick walls for new  windows, including pre-stressed concrete lintels, making good cement plaster on both sides and into reveals and with sloping fibre-cement sills on outside and flat fibre-cement sills on inside (new windows and making good paintwork elsewhere)"]
[]
[" K",null,"Opening 1 200 x 1 000mmm high in cavity brick wall",null,"No",{"v":4,"d":"4 "},null,{"$f":"ROUND(F209*G209,2)","v":{"v":0,"d":"0.00"}}]
[]
[null,null,"BUILDING UP OPENINGS"]
[]
[null,null,"Brickwork in NFP bricks in class II mortar in building up openings"]
[]
[" L",null,"230mm One brick walls of two half brick skins including wire ties",null,"m²",{"v":5,"d":"5 "},null,{"$f":"ROUND(F215*G215,2)","v":{"v":0,"d":"0.00"}}]
[]
[" M",null,"280mm Hollow walls of two half brick skins including wire ties",null,"m²",{"v":57,"d":"57 "},null,{"$f":"ROUND(F217*G217,2)","v":{"v":0,"d":"0.00"}}]
[]
[null,null,"Sundries"]
[]
[" A",null,"Cutting toothings and bonding new brickwork to existing",null,"m²",{"v":8,"d":"8 "},null,{"$f":"ROUND(F221*G221,2)","v":{"v":0,"d":"0.00"}}]
[]
[null,null,"REMEDIAL WORK TO EXISTING WINDOWS"]
[]
[null,null,"Service and permanently seal existing windows"]
[]
[" B",null,"Making good and servicing window with overall size not exceeding 2.5m\"² with panes including fixing broken glazing and members, raking out existing sealant, prepare surface for new sealant and permanently sealing window with approved silicon sealant",null,"No",{"v":7,"d":"7 "},null,{"$f":"ROUND(F227*G227,2)","v":{"v":0,"d":"0.00"}}]
[]
[" C",null,"Making good and servicing window with overall size exceeding 2,5m\"² and not exceeding 5m\"² with panes including fixing broken glazing and members, raking out existing sealant, prepare surface for new sealant and permanently sealing window with approved silicon sealant",null,"No",{"v":6,"d":"6 "},null,{"$f":"ROUND(F229*G229,2)","v":{"v":0,"d":"0.00"}}]
[]
[null,null,"PREPARATORY WORK TO EXISTING SURFACES"]
[]
[null,null,"Preparing existing internal walls to be re-painted by removing existing wall-mounted equipment, fittings and cladding where applicable and strip off existing paint to base coat where paint is peeling and cracked"]
[]
[" D",null,"Preparing existing walls to be re-painted",null,"m²",{"v":1013,"d":"1,013 "},null,{"$f":"ROUND(F235*G235,2)","v":{"v":0,"d":"0.00"}}]
[]
[null,null,"MAKING GOOD OF FINISHES ETC"]
[]
[null,null,"Making good internal cement screeds"]
[]
[" E",null,"Screeds where 110mm brick walls removed",null,"m",{"v":7,"d":"7 "},null,{"$f":"ROUND(F241*G241,2)","v":{"v":0,"d":"0.00"}}]
[]
[" F",null,"Screeds where 230mm brick walls removed",null,"m",{"v":11,"d":"11 "},null,{"$f":"ROUND(F243*G243,2)","v":{"v":0,"d":"0.00"}}]
[]
[null,null,"Making good cement plaster"]
[]
[" G",null,"Walls where 110mm brick walls removed",null,"m",{"v":8,"d":"8 "},null,{"$f":"ROUND(F247*G247,2)","v":{"v":0,"d":"0.00"}}]
[]
[" H",null,"Walls where 230mm brick walls removed",null,"m",{"v":21,"d":"21 "},null,{"$f":"ROUND(F249*G249,2)","v":{"v":0,"d":"0.00"}}]
[]
[null,null,"Making good vinyl floors, platform finish, etc"]
[]
[" A",null,"Making good and prepare existing floor to receive new floor finish",null,"m²",{"v":151,"d":"151 "},null,{"$f":"ROUND(F253*G253,2)","v":{"v":0,"d":"0.00"}}]
[]
[null,null,"BILL NO. 2"]
[]
[null,null,"CONCRETE, FORMWORK AND REINFORCEMENT"]
[]
[null,null,"NOTE:  Tenderers are advised to study the Model Preambles for Trades before pricing this bill"]
[]
[null,null,"SUPPLEMENTARY PREAMBLES"]
[]
[null,null,"Cost of tests"]
[]
[null,null,"The costs of making, storing and testing of concrete test cubes as required under Clause 7 \"Tests\" of SABS 1200 G shall include the cost of providing cube moulds necessary for the purpose, for testing costs and for submitting reports on the tests to the Architect.  The testing shall be undertaken by an independent firm or institution nominated by the Contractor to the approval of the Architect  (Test cubes are measured separately)"]
[]
[null,null,"Formwork"]
[]
[null,null,"Descriptions of formwork shall be deemed to include use and waste only (except where described as \"left in\" or \"permanent\"), for fitting together in the required forms, wedging, plumbing and fixing to true angles and surfaces as necessary to ensure easy release during stripping and for reconditioning as necessary before re-use. The vertical strutting shall be carried down to such construction as is sufficiently strong to afford the required support without damage and shall remain in position until the newly constructed work is able to support itself"]
[]
[null,null,"Formwork to soffits of solid slabs, etc shall be deemed to be to slabs not exceeding 250mm thick unless otherwise described Formwork has been measured to the sides of all reinforced concrete in foundations and will be remeasured according to actual usage.  However, formwork necessitated by irregularity or collapse of excavated faces will not be measured and the cost thereof shall be deemed to be included in the allowance for taking the risk of collapse of the sides of the excavations, provision for which is made in \"Earthworks\""]
[]
[null,null,"REINFORCED CONCRETE"]
[]
[null,null,"30MPa/19mm concrete"]
[]
[" A",null,"Isolated Beams",null,"m³",{"v":1,"d":"1 "},null,{"$f":"ROUND(F277*G277,2)","v":{"v":0,"d":"0.00"}}]
[]
[null,null,"TEST BLOCKS"]
[]
[null,null,"Test blocks"]
[]
[" B",null,"Making and testing set of three 150 x 150 x 150mm concrete strength test cubes",null,"No",{"v":1,"d":"1 "},null,{"$f":"ROUND(F283*G283,2)","v":{"v":0,"d":"0.00"}}]
[]
[null,null,"FORMWORK"]
[]
[null,null,"ROUGH FORMWORK (DEGREE OF ACCURACY II)"]
[]
[null,null,"Rough formwork to sides"]
[]
[" C",null,"Isolated Beams",null,"m²",{"v":6,"d":"6 "},null,{"$f":"ROUND(F291*G291,2)","v":{"v":0,"d":"0.00"}}]
[]
[null,null,"Rough formwork to soffits"]
[]
[" D",null,"Isolated beams propped up exceeding 1.5m and not exceeding 3.5m high",null,"m²",{"v":1,"d":"1 "},null,{"$f":"ROUND(F295*G295,2)","v":{"v":0,"d":"0.00"}}]
[]
[null,null,"REINFORCEMENT"]
[]
[null,null,"Mild steel reinforcement to structural concrete work"]
[]
[" A",null,"Various diameter mild steel bars",null,"t",0.03,null,{"$f":"ROUND(F301*G301,2)","v":{"v":0,"d":"0.00"}}]
[]
[null,null,"High tensile steel reinforcement to structural concrete work"]
[]
[" B",null,"Various diameter high tensile steel bars",null,"t",0.46,null,{"$f":"ROUND(F305*G305,2)","v":{"v":0,"d":"0.00"}}]
[]
[null,null,"High tensile steel dowel bars"]
[]
[" C",null,"20mm Diameter dowel bar 150mm long with both end embedded 75mm deep in existing concrete columns and fixed to new concrete beam as per engineers detail",null,"No",{"v":4,"d":"4 "},null,{"$f":"ROUND(F309*G309,2)","v":{"v":0,"d":"0.00"}}]
[]
[null,null,"BILL NO. 3"]
[]
[null,null,"MASONRY"]
[]
[null,null,"NOTE:  Tenderers are advised to study the Model Preambles for Trades before pricing this bill"]
[]
[null,null,"SUPPLEMENTARY PREAMBLES"]
[]
[null,null,"BRICKWORK"]
[]
[null,null,"Sizes in descriptions"]
[]
[null,null,"Where sizes in descriptions are given in brick units, \"one brick\" shall represent the length and \"half brick\" the width of a brick"]
[]
[null,null,"Hollow walls, etc"]
[]
[null,null,"Descriptions of hollow walls shall be deemed to include leaving every fifth perpend of the bottom course of the external skin open as a weep hole  Walls in two skins described as \"bagged and sealed\" shall be deemed to include having the outer face of the inner skin bagged with 1:6 cement and sand mixture and sealed with two coats \"Brixeal\" bitumen emulsion waterproof coating"]
[]
[null,null,"Face bricks"]
[]
[null,null,"Bricks shall be ordered timeously to obtain uniformity in size and colour"]
[]
[null,null,"Pointing"]
[]
[null,null,"Descriptions of recessed pointing to fair face brickwork and face brickwork shall be deemed to include square recessed, hollow recessed, weathered pointing, etc"]
[]
[null,null,"Samples"]
[]
[null,null,"Samples of all masonry building units, except those for walls described as \"load bearing\", shall consist of a minimum of six units.  Samples of building units to be used in walls described as \"load bearing\" shall consist of thirty units from every thirty thousand units delivered to site"]
[]
[null,null,"SUPERSTRUCTURE BRICKWORK"]
[]
[null,null,"Brickwork of NFP bricks in class II mortar"]
[]
[" A",null,"110mm Half Brick wall",null,"m²",{"v":157,"d":"157 "},null,{"$f":"ROUND(F345*G345,2)","v":{"v":0,"d":"0.00"}}]
[]
[" B",null,"230mm One brick walls",null,"m²",{"v":8,"d":"8 "},null,{"$f":"ROUND(F347*G347,2)","v":{"v":0,"d":"0.00"}}]
[]
[" C",null,"280mm Cavity brick walls",null,"m²",{"v":28,"d":"28 "},null,{"$f":"ROUND(F349*G349,2)","v":{"v":0,"d":"0.00"}}]
[]
[null,null,"FACE BRICKWORK"]
[]
[null,null,"Face bricks pointed with recessed horizontal and vertical joints"]
[]
[" D",null,"Extra over brickwork for face brickwork in superstructure",null,"m²",{"v":43,"d":"43 "},null,{"$f":"ROUND(F355*G355,2)","v":{"v":0,"d":"0.00"}}]
[]
[null,null," BRICKWORK SUNDRIES"]
[]
[" E",null,"Closing 50mm cavity of hollow walls vertically with brickwork half brick wide",null,"m",{"v":29,"d":"29 "},null,{"$f":"ROUND(F359*G359,2)","v":{"v":0,"d":"0.00"}}]
[]
[" F",null,"Closing 50mm cavity of hollow walls horizontally with two courses of brickwork",null,"m",{"v":11,"d":"11 "},null,{"$f":"ROUND(F361*G361,2)","v":{"v":0,"d":"0.00"}}]
[]
[" G",null,"Plaster coping",null,"m",{"v":46,"d":"46 "},null,{"$f":"ROUND(F363*G363,2)","v":{"v":0,"d":"0.00"}}]
[]
[null,null,"Brickwork reinforcement"]
[]
[" A",null,"75mm Wide reinforcement built in horizontally",null,"m",{"v":454,"d":"454 "},null,{"$f":"ROUND(F367*G367,2)","v":{"v":0,"d":"0.00"}}]
[]
[" B",null,"150mm Wide reinforcement built in horizontally",null,"m",{"v":9,"d":"9 "},null,{"$f":"ROUND(F369*G369,2)","v":{"v":0,"d":"0.00"}}]
[]
[null,null,"\"Stresso\" pre-stressed fabricated lintels"]
[]
[" C",null,"90 x 75mm Lintels in lengths not exceeding 3m",null,"m",{"v":84,"d":"84 "},null,{"$f":"ROUND(F373*G373,2)","v":{"v":0,"d":"0.00"}}]
[]
[null,null,"BILL NO. 4"]
[]
[null,null,"WATERPROOFING"]
[]
[null,null,"NOTE:  Tenderers are advised to study the Model Preambles for Trades before pricing this bill"]
[]
[null,null,"SUPPLEMENTARY PREAMBLES"]
[]
[null,null,"Waterproofing"]
[]
[null,null,"Waterproofing of roofs, basements, etc shall be laid under a ten year guarantee.  Waterproofing to roofs shall be laid to even falls to outlets, etc with necessary ridges, hips and valleys.  Descriptions of sheet or membrane waterproofing shall be deemed to include additional labour to turn-ups and turn-downs"]
[]
[null,null,"DAMPPROOFING OF WALLS AND FLOORS"]
[]
[null,null,"One layer of 250 micron \"Consol Plastics Gunplas USB Green\" waterproof sheeting sealed at laps with \"Gunplas Pressure Sensitive Tape\""]
[]
[" A",null,"Under surface beds",null,"m²",{"v":98,"d":"98 "},null,{"$f":"ROUND(F391*G391,2)","v":{"v":0,"d":"0.00"}}]
[]
[null,null,"One layer of 375 micron \"Consol Plastics Brikgrip DPC\" embossed damp proof course"]
[]
[" B",null,"In walls",null,"m²",{"v":20,"d":"20 "},null,{"$f":"ROUND(F395*G395,2)","v":{"v":0,"d":"0.00"}}]
[]
[null,null,"Prepare and apply three coats dura flex or similar approved waterproofing system with 100mm wide end laps including sealing laps at corners with 100mm double sided tape as per manufacturers specifications"]
[]
[" C",null,"Dress waterproofing into waste outlet including additional membrane and waterproofing",null,"No",{"v":7,"d":"7 "},null,{"$f":"ROUND(F399*G399,2)","v":{"v":0,"d":"0.00"}}]
[]
[null,null,"JOINT SEALANTS, ETC"]
[]
[null,null,"Approved silicone pointing"]
[]
[" A",null,"Between aluminium windows, shopfronts, doors etc and walls",null,"m",{"v":23,"d":"23 "},null,{"$f":"ROUND(F405*G405,2)","v":{"v":0,"d":"0.00"}}]
[]
[" B",null,"Between timber doors etc and walls",null,"m",{"v":10,"d":"10 "},null,{"$f":"ROUND(F407*G407,2)","v":{"v":0,"d":"0.00"}}]
[]
[null,null,"\"Sikaflex pro 2HP\" two-part polyurethane joint sealing compound including backing cord, bond breaker, etc"]
[]
[" C",null,"3 x 6mm In saw cut joints in floors",null,"m",{"v":29,"d":"29 "},null,{"$f":"ROUND(F411*G411,2)","v":{"v":0,"d":"0.00"}}]
[]
[null,null,"BILL NO. 5"]
[]
[null,null,"ROOF COVERINGS, ETC"]
[]
[null,null,"NOTE:  Tenderers are advised to study the Model Preambles for Trades before pricing this bill"]
[]
[null,null,"SUPPLEMENTARY PREAMBLES"]
[]
[null,null,"Guarantees"]
[]
[null,null,"The contractor will be required to provide a written guarantee for the roof covering as follows:  - Galvanised roof covering material - five years - Chromadek roof covering material - ten years - Workmanship - ten years"]
[]
[null,null,"PROFILED METAL SHEETING AND ACCESSORIES"]
[]
[null,null,"Sheeting shall be Aluminium Zinc coated IBR with approval from architect prior to installation and a standard backing coat, in strict accordance with the manufacturers instructions. Fixed to steel complete in its entirety by a approved contractor in strict accordance with manufacturer\"€™s specifications, refer to drawing number 21_028-LTS-DR-ZZ-LS-L00-190001-T-A, 21_028-LTS-DR-ZZ-LS-L00-190002-T-A"]
[]
[" A",null,"Roof coverings with pitch not exceeding 25 degrees",null,"m²",{"v":8,"d":"8 "},null,{"$f":"ROUND(F429*G429,2)","v":{"v":0,"d":"0.00"}}]
[]
[null,null,"IBR roll-formed in continuous lengths to match existing , fixed to steel complete with and including all fixings, etc. All in accordance with the manufacturer's specifications, refer to drawing number 21_028-LTS-DR-ZZ-LS-L00-190001-T-A, 21_028-LTS-DR-ZZ-LS-L00-190002-T-A"]
[]
[" B",null,"Barge flashing 660mm girth",null,"m",{"v":16,"d":"16 "},null,{"$f":"ROUND(F433*G433,2)","v":{"v":0,"d":"0.00"}}]
[]
[" C",null,"Apex flashings 462mm girth",null,"m",{"v":8,"d":"8 "},null,{"$f":"ROUND(F435*G435,2)","v":{"v":0,"d":"0.00"}}]
[]
[null,null,"BILL NO. 6"]
[]
[null,null,"CARPENTRY AND JOINERY"]
[]
[null,null,"NOTE:\tTenderers are advised to study the Model \tPreambles for Trades before pricing this bill"]
[]
[null,null,"SUPPLEMENTARY PREAMBLES"]
[]
[null,null,"Particle board shall comply with the following specifications: a)\tSABS 1300 Particle board: exterior and flooring type b)\tSABS 1301 Particle board: interior type"]
[]
[null,null,"Descriptions of frames shall be deemed to include frames, transoms, mullions, rails, etc"]
[]
[null,null,"Descriptions of hardwood joinery shall be deemed to include pelleting of bolt holes"]
[]
[null,null,"Items described as \"nailed\" shall be deemed to be fixed with hardened steel nails or shot pins to brickwork or concrete"]
[]
[null,null,"Laminate finish shall be glued under pressure.  Edge strips shall be butt jointed at junctions with adjacent similar finish"]
[]
[null,null,"The following joinery fittings have been measured as complete units i.e. the components of the units have not been separately measured.  The descriptions, therefore, of such units shall be deemed to include all components, assembling, housing, notching, gluing, blocking, planting on and screwing with countersunk screws, edge strips, skirtings, trims, framework, decorative plastics finish, glass, ironmongery, metalwork, paint or varnish finishes, etc"]
[]
[null,null,"Prices are to include for all ironmongery, finishes, etc unless otherwise described"]
[]
[null,null,"Prices are to include for the making of holes, etc to accommodate lighting, conduits, pipes, fittings, etc"]
[]
[null,null,"Prices are to include for approved silicon sealant at all junctions of work tops, sides, panels, etc. with walls"]
[]
[null,null,"Items described as \"nailed\" shall be deemed to be fixed with hardened steel nails or shot pins to brickwork or concrete"]
[]
[null,null,"STRUCTURAL TIMBERWORK, ETC"]
[]
[null,null,"South African Pine"]
[]
[" A",null,"38 x 38mm Ceiling joists in lengths exceeding 2,4m and not exceeding 3,9m",null,"m",{"v":55,"d":"55 "},null,{"$f":"ROUND(F469*G469,2)","v":{"v":0,"d":"0.00"}}]
[]
[" B",null,"38 x 38mm Ceiling joists in lengths exceeding 3,9m and not exceeding 6,6m",null,"m",{"v":232,"d":"232 "},null,{"$f":"ROUND(F471*G471,2)","v":{"v":0,"d":"0.00"}}]
[]
[" C",null,"50 x 75mm Ceiling joists in lengths exceeding 3,9m and not exceeding 6,6m",null,"m",{"v":83,"d":"83 "},null,{"$f":"ROUND(F473*G473,2)","v":{"v":0,"d":"0.00"}}]
[]
[" D",null,"38 x 114mm Bolted beams in single lengths exceeding 3,9m and not exceeding 6,6m",null,"m",{"v":150,"d":"150 "},null,{"$f":"ROUND(F475*G475,2)","v":{"v":0,"d":"0.00"}}]
[]
[" E",null,"50 x 225mm Bolted rafters in single lengths exceeding 3,9m and not exceeding 6,6m",null,"m",{"v":62,"d":"62 "},null,{"$f":"ROUND(F477*G477,2)","v":{"v":0,"d":"0.00"}}]
[]
[null,null,"Sundries"]
[]
[" A",null,"Multi purpose joist hangers bolted to brick walls / concrete / partition wall including bolts, refer to architect's drawing 2022_CSIR_A.03.3.1",null,"No",{"v":86,"d":"86 "},null,{"$f":"ROUND(F481*G481,2)","v":{"v":0,"d":"0.00"}}]
[]
[null,null,"EAVES, VERGES, ETC"]
[]
[null,null,"Wrought meranti"]
[]
[" B",null,"12 x 220mm fascia boards fastened to ends of trusses/wall complete with H-section cover strips at joints",null,"m",{"v":7,"d":"7 "},null,{"$f":"ROUND(F487*G487,2)","v":{"v":0,"d":"0.00"}}]
[]
[null,null,"FIRE DOORS"]
[]
[null,null,"Purpose made Class A fire door with \"Plascon Velvago\" finishes both sides with horizontal grooves to match \"Lotus Amoretti Milano SUP Horizontal  MDF doors\", with and including rebated steel frame, ironmongery suitable for brick walls, as per the architect's door schedules and lab internal architecture schedules"]
[]
[" C",null,"60min Fire Rated door type D_TD121b size 900 x 2 100mm high hung to and including single rebate steel door frame, additional studding, trimming, concealed edges etc. complete in its entirety as per the architect's drawing: 21_028-LTS-DR-ZZ-LS-L00-110002-L-A and door schedule 2022_CSIR_A.10.21 and 21_028-LTS-DR-ZZ-LS-L00-170002-L-A",null,"No",{"v":2,"d":"2 "},null,{"$f":"ROUND(F493*G493,2)","v":{"v":0,"d":"0.00"}}]
[]
[" D",null,"60min Fire Rated door type D_TD183b size 1 500 x 2 100mm high hung to and including single rebate steel door frame, additional studding, cut-out for viewing panel, trimming, concealed edges etc. complete in its entirety as per the architect's drawing: 21_028-LTS-DR-ZZ-LS-L00-110002-L-A and door schedule 2022_CSIR_A.10.9 and 2022_CSIR_A.10.21 and 21_028-LTS-DR-ZZ-LS-L00-170002-L-A",null,"No",{"v":3,"d":"3 "},null,{"$f":"ROUND(F495*G495,2)","v":{"v":0,"d":"0.00"}}]
[]
[" A",null,"60min Fire Rated door type D_TD183b size 1 500 x 2 100mm high hung to and including single rebate steel door frame, additional studding, cut-out for viewing panel, trimming, concealed edges etc. complete in its entirety as per the architect's drawing: 21_028-LTS-DR-ZZ-LS-L00-110002-L-A and door schedule 2022_CSIR_A.10.26 and 21_028-LTS-DR-ZZ-LS-L00-170002-L-A",null,"No",{"v":1,"d":"1 "},null,{"$f":"ROUND(F497*G497,2)","v":{"v":0,"d":"0.00"}}]
[]
[" B",null,"60min Fire Rated door type D_TD193b size 1 800 x 2 132mm high hung to and including single rebate steel door frame, additional studding, cut-out for viewing panel, trimming, concealed edges etc. complete in its entirety as per the architect's drawing: 21_028-LTS-DR-ZZ-LS-L00-110002-L-A and door schedule 2022_CSIR_A.10.19 and 21_028-LTS-DR-ZZ-LS-L00-170002-L-A",null,"No",{"v":1,"d":"1 "},null,{"$f":"ROUND(F499*G499,2)","v":{"v":0,"d":"0.00"}}]
[]
[null,null,"SKIRTINGS, CORNICES, ETC"]
[]
[null,null,"Wrought meranti"]
[]
[" C",null,"22 x 90mm Skirting with a rounded top edge plugged to wall including an 6 x 6mm notch",null,"m",{"v":98,"d":"98 "},null,{"$f":"ROUND(F505*G505,2)","v":{"v":0,"d":"0.00"}}]
[]
[null,null,"JOINERY FITTINGS"]
[]
[null,null,"All joinery complete as per lab specialist's drawing: \"21_028-LTS-DR-ZZ-LS-L00-170001-L-A\" and \"21_028-LTS-DR-ZZ-LS-L00-170002-L-A\" and Architects Joinery Drawings: \"2022_CSIR_A.08.1\""]
[]
[null,null,"Custom built Kitchenettes, vanities, Counters, etc"]
[]
[" D",null,"Kitchenette with overall unit size 2 970 x 600 x 900mm high, formed of 16mm PG Bison accent doors, 16mm Melamine Shelves, 30mm Granite Counter Top, handles, drawers etc, complete in its entirety as per drawings: \"2022_CSIR_A.08.1\" (sink, tiles and partition wall measured elsewhere)",null,"No",{"v":1,"d":"1 "},null,{"$f":"ROUND(F513*G513,2)","v":{"v":0,"d":"0.00"}}]
[]
[" A",null,"Wall mounted kitchen cabinet with overall unit size 1 200 x 300 x 750mm high, formed of 16mm PG Bison accent doors, 16mm Melamine Shelves, handles etc, complete in its entirety as per drawings: \"2022_CSIR_A.08.1\"",null,"No",{"v":1,"d":"1 "},null,{"$f":"ROUND(F515*G515,2)","v":{"v":0,"d":"0.00"}}]
[]
[" B",null,"Wall mounted kitchen cabinet with overall unit size 1 000 x 300 x 750mm high, formed of 16mm PG Bison accent doors, 16mm Melamine Shelves, handles etc, complete in its entirety as per drawings: \"2022_CSIR_A.08.1\"",null,"No",{"v":1,"d":"1 "},null,{"$f":"ROUND(F517*G517,2)","v":{"v":0,"d":"0.00"}}]
[]
[" C",null,"Stainless steel table with lockable casters overall size 1200 x 800mm complete as per drawing no: 21_028-LTS-DR-ZZ-LS-L00-170001-L-A and Laboratory fit out specification document",null,"No",{"v":1,"d":"1 "},null,{"$f":"ROUND(F519*G519,2)","v":{"v":0,"d":"0.00"}}]
[]
[" D",null,"Display cabinet with overall unit size 3 018 x 500 x 2 355mm high, formed of 16mm PG Bison Accent doors, 16mm PG Bison Accent Melawood Open Shelves, 22mm PG Bison Accent Range Melawood Counter Top, 8mm Tempered Glass Frameless triple sliding cabinet doors, flat aluminium bar handles, Wall mount heavy duty shelf support etc, complete in its entirety as per drawings : \"2022_CSIR_A.08.2\"",null,"No",{"v":1,"d":"1 "},null,{"$f":"ROUND(F521*G521,2)","v":{"v":0,"d":"0.00"}}]
[]
[null,null,"2mm Stainless steel step over bench with storage below"]
[]
[" E",null,"Step over bench 1 914 x 450mm high bolted to floor complete as per drawing no: 21_028-LTS-DR-ZZ-LS-L00-170001-L-A and Laboratory fit out specification document",null,"No",{"v":1,"d":"1 "},null,{"$f":"ROUND(F525*G525,2)","v":{"v":0,"d":"0.00"}}]
[]
[null,null,"16mm Melamine Laboratory Under Bench Cabinets (Colour: \"White\")"]
[]
[" A",null,"Type C_CF221f Custom built vacuum pump cabinet 468 x 500 x 848mm high under bench cabinet consisting of no doors and airvents on side of cabinet complete as per drawing no: 21_028-LTS-DR-ZZ-LS-L00-170001-L-A and Laboratory fit out specification document",null,"No",{"v":4,"d":"4 "},null,{"$f":"ROUND(F529*G529,2)","v":{"v":0,"d":"0.00"}}]
[]
[" B",null,"Type C_CF221m Waste cupboard 468 x 500 x 848mm high under bench cabinet complete as per drawing no: 21_028-LTS-DR-ZZ-LS-L00-170001-L-A and Laboratory fit out specification document",null,"No",{"v":4,"d":"4 "},null,{"$f":"ROUND(F531*G531,2)","v":{"v":0,"d":"0.00"}}]
[]
[" C",null,"Type C_CF222d Fixed cabinet 968 x 500 x 848mm high under bench cabinet consisting of non-lockable double drawers and double doors complete as per drawing no: 21_028-LTS-DR-ZZ-LS-L00-170001-L-A and Laboratory fit out specification document",null,"No",{"v":5,"d":"5 "},null,{"$f":"ROUND(F533*G533,2)","v":{"v":0,"d":"0.00"}}]
[]
[" D",null,"Type C_CM121d Mobile cabinet 450 x 500 x 698mm high under bench cabinet consisting of non-lockable single drawers and doors complete as per drawing no: 21_028-LTS-DR-ZZ-LS-L00-170001-L-A and Laboratory fit out specification document",null,"No",{"v":1,"d":"1 "},null,{"$f":"ROUND(F535*G535,2)","v":{"v":0,"d":"0.00"}}]
[]
[" E",null,"Type C_CM122b Mobile cabinet 968 x 500 x 698mm high under bench cabinet consisting of non-lockable single drawers complete as per drawing no: 21_028-LTS-DR-ZZ-LS-L00-170001-L-A and Laboratory fit out specification document",null,"No",{"v":1,"d":"1 "},null,{"$f":"ROUND(F537*G537,2)","v":{"v":0,"d":"0.00"}}]
[]
[" F",null,"Type C_CM122d Mobile cabinet 968 x 500 x 698mm high under bench cabinet consisting of non-lockable double drawers and doors complete as per drawing no: 21_028-LTS-DR-ZZ-LS-L00-170001-L-A and Laboratory fit out specification document",null,"No",{"v":6,"d":"6 "},null,{"$f":"ROUND(F539*G539,2)","v":{"v":0,"d":"0.00"}}]
[]
[" A",null,"Type C_CM212d Mobile cabinet 968 x 360 x 848mm high under bench cabinet consisting of non-lockable drawers and doors complete as per drawing no: 21_028-LTS-DR-ZZ-LS-L00-170001-L-A and Laboratory fit out specification document",null,"No",{"v":1,"d":"1 "},null,{"$f":"ROUND(F541*G541,2)","v":{"v":0,"d":"0.00"}}]
[]
[" B",null,"Type C_CM212f Mobile cabinet 968 x 360 x 848mm high under bench cabinet consisting of non-lockable doors complete as per drawing no: 21_028-LTS-DR-ZZ-LS-L00-170001-L-A and Laboratory fit out specification document",null,"No",{"v":1,"d":"1 "},null,{"$f":"ROUND(F543*G543,2)","v":{"v":0,"d":"0.00"}}]
[]
[" C",null,"Type C_CM221 Mobile cabinet 468 x 500 x 848mm high under bench cabinet consisting of non-lockable single drawers complete as per drawing no: 21_028-LTS-DR-ZZ-LS-L00-170001-L-A and Laboratory fit out specification document",null,"No",{"v":5,"d":"5 "},null,{"$f":"ROUND(F545*G545,2)","v":{"v":0,"d":"0.00"}}]
[]
[" D",null,"Type C_CM221d Mobile cabinet 450 x 500 x 848mm high under bench cabinet consisting of non-lockable drawers and doors complete as per drawing no: 21_028-LTS-DR-ZZ-LS-L00-170001-L-A and Laboratory fit out specification document",null,"No",{"v":6,"d":"6 "},null,{"$f":"ROUND(F547*G547,2)","v":{"v":0,"d":"0.00"}}]
[]
[" E",null,"Type C_CM222b Mobile cabinet 968 x 500 x 848mm high under bench cabinet consisting of non-lockable full drawers complete as per drawing no: 21_028-LTS-DR-ZZ-LS-L00-170001-L-A and Laboratory fit out specification document",null,"No",{"v":8,"d":"8 "},null,{"$f":"ROUND(F549*G549,2)","v":{"v":0,"d":"0.00"}}]
[]
[" F",null,"Type C_CM222d Mobile cabinet 968 x 500 x 848mm high under bench cabinet consisting of non-lockable drawers and doors complete as per drawing no: 21_028-LTS-DR-ZZ-LS-L00-170001-L-A and Laboratory fit out specification document",null,"No",{"v":10,"d":"10 "},null,{"$f":"ROUND(F551*G551,2)","v":{"v":0,"d":"0.00"}}]
[]
[" A",null,"Type C_CM222f Cabinet 968 x 500 x 848mm high under bench cabinet consisting of non-lockable doors complete as per drawing no: 21_028-LTS-DR-ZZ-LS-L00-170001-L-A and Laboratory fit out specification document",null,"No",{"v":15,"d":"15 "},null,{"$f":"ROUND(F553*G553,2)","v":{"v":0,"d":"0.00"}}]
[]
[" B",null,"Type C_CS222h Fixed sink cabinet 968 x 500 x 848mm high under bench cabinet consisting of non-lockable doors with fixed panels complete as per drawing no: 21_028-LTS-DR-ZZ-LS-L00-170001-L-A and Laboratory fit out specification document",null,"No",{"v":3,"d":"3 "},null,{"$f":"ROUND(F555*G555,2)","v":{"v":0,"d":"0.00"}}]
[]
[null,null,"16mm Melamine Floor Standing Filing Cabinets (Colour: \"White\")"]
[]
[" C",null,"Wall Mounted Cabinet 1 000 x 290 x 1 225mm high filling cabinet consisting of double doors",null,"No",{"v":3,"d":"3 "},null,{"$f":"ROUND(F559*G559,2)","v":{"v":0,"d":"0.00"}}]
[]
[" D",null,"Floor standing storage cabinet with full glass inserts on doors 1695 x 600 x 750mm high",null,"No",{"v":6,"d":"6 "},null,{"$f":"ROUND(F561*G561,2)","v":{"v":0,"d":"0.00"}}]
[]
[" E",null,"Floor standing storage cabinet with full glass inserts on doors 1200 x 300 x 750mm high",null,"No",{"v":1,"d":"1 "},null,{"$f":"ROUND(F563*G563,2)","v":{"v":0,"d":"0.00"}}]
[]
[" F",null,"Floor standing storage cabinet with full glass inserts on doors 1480 x 600 x 2100mm high",null,"No",{"v":2,"d":"2 "},null,{"$f":"ROUND(F565*G565,2)","v":{"v":0,"d":"0.00"}}]
[]
[null,null,"\"Granite\" solid core worktops to be fitted on epoxy powder coated steel bench frames (bench frames elsewhere measured)"]
[]
[" G",null,"Bench top (Type F_BT3c) 600 x 20mm thick",null,"m",{"v":2,"d":"2 "},null,{"$f":"ROUND(F569*G569,2)","v":{"v":0,"d":"0.00"}}]
[]
[null,null,"\"Trespa/Durcon Steel/Silver Grey\" solid core worktops to be fitted on epoxy powder coated steel bench frames (bench frames elsewhere measured)"]
[]
[" H",null,"Bench top (Type F_BT1a) 600 x 20mm thick",null,"m",{"v":8,"d":"8 "},null,{"$f":"ROUND(F573*G573,2)","v":{"v":0,"d":"0.00"}}]
[]
[" J",null,"Bench top (Type F_BT3a) 800 x 20mm thick",null,"m",{"v":97,"d":"97 "},null,{"$f":"ROUND(F575*G575,2)","v":{"v":0,"d":"0.00"}}]
[]
[null,null,"32mm epoxy coated square tubing frame (Type FF132a), 800 x 750mm high"]
[]
[" A",null,"Bench frame consisting of 1 x left upright, 1 x right upright, 5 No. of centre uprights (750mm high), 6 No. of 970mm connectors (3 pieces), complete as per drawing no: 21_028-LTS-DR-ZZ-LS-L00-170001-L-A and Laboratory fit out specification document",null,"No",{"v":1,"d":"1 "},null,{"$f":"ROUND(F579*G579,2)","v":{"v":0,"d":"0.00"}}]
[]
[" B",null,"Bench frame consisting of 1 x left upright, 1 x right upright, 6 No. of centre uprights (750mm high), 6 No. of 970mm connectors (3 pieces), 1 No. of 370mm connectors (3 pieces), complete as per drawing no: 21_028-LTS-DR-ZZ-LS-L00-170001-L-A and Laboratory fit out specification document",null,"No",{"v":1,"d":"1 "},null,{"$f":"ROUND(F581*G581,2)","v":{"v":0,"d":"0.00"}}]
[]
[null,null,"32mm epoxy coated square tubing frame (Type FF232a), 800 x 900mm high"]
[]
[" C",null,"Bench frame consisting of 1 x left upright, 1 x right upright, 1 No. of 970mm connectors (3 pieces), complete as per drawing no: 21_028-LTS-DR-ZZ-LS-L00-170001-L-A and Laboratory fit out specification document",null,"No",{"v":1,"d":"1 "},null,{"$f":"ROUND(F585*G585,2)","v":{"v":0,"d":"0.00"}}]
[]
[" D",null,"Bench frame consisting of 1 x left upright, 1 x right upright, 1 No. of centre uprights (900mm high), 1 No. of 970mm connectors (3 pieces) and 1 No. of 190mm connector (3 pieces), complete as per drawing no: 21_028-LTS-DR-ZZ-LS-L00-170001-L-A and Laboratory fit out specification document",null,"No",{"v":1,"d":"1 "},null,{"$f":"ROUND(F587*G587,2)","v":{"v":0,"d":"0.00"}}]
[]
[" E",null,"Bench frame consisting of 1 x left upright, 1 x right upright, 1 No. of centre uprights (900mm high), 1 No. of 970mm connectors (3 pieces) and 1 No. of 470mm connector (3 pieces), complete as per drawing no: 21_028-LTS-DR-ZZ-LS-L00-170001-L-A and Laboratory fit out specification document",null,"No",{"v":4,"d":"4 "},null,{"$f":"ROUND(F589*G589,2)","v":{"v":0,"d":"0.00"}}]
[]
[" A",null,"Bench frame consisting of 1 x left upright, 1 x right upright, 1 No. of centre uprights (900mm high), 1 No. of 970mm connectors (3 pieces) and 1 No. of 580mm connector (3 pieces), complete as per drawing no: 21_028-LTS-DR-ZZ-LS-L00-170001-L-A and Laboratory fit out specification document",null,"No",{"v":2,"d":"2 "},null,{"$f":"ROUND(F591*G591,2)","v":{"v":0,"d":"0.00"}}]
[]
[" B",null,"Bench frame consisting of 1 x left upright, 1 x right upright, 2 No. of centre uprights (900mm high), 2 No. of 970mm connectors (3 pieces) and 1 No. of 160mm connector (3 pieces), complete as per drawing no: 21_028-LTS-DR-ZZ-LS-L00-170001-L-A and Laboratory fit out specification document",null,"No",{"v":1,"d":"1 "},null,{"$f":"ROUND(F593*G593,2)","v":{"v":0,"d":"0.00"}}]
[]
[" C",null,"Bench frame consisting of 1 x left upright, 1 x right upright, 2 No. of centre uprights (900mm high), 2 No. of 970mm connectors (3 pieces) and 1 No. of 400mm connector (3 pieces), complete as per drawing no: 21_028-LTS-DR-ZZ-LS-L00-170001-L-A and Laboratory fit out specification document",null,"No",{"v":1,"d":"1 "},null,{"$f":"ROUND(F595*G595,2)","v":{"v":0,"d":"0.00"}}]
[]
[" D",null,"Bench frame consisting of 1 x left upright, 1 x right upright, 2 No. of centre uprights (900mm high), 2 No. of 970mm connectors (3 pieces) and 1 No. of 750mm connector (3 pieces), complete as per drawing no: 21_028-LTS-DR-ZZ-LS-L00-170001-L-A and Laboratory fit out specification document",null,"No",{"v":1,"d":"1 "},null,{"$f":"ROUND(F597*G597,2)","v":{"v":0,"d":"0.00"}}]
[]
[" E",null,"Bench frame consisting of 1 x left upright, 1 x right upright, 3 No. of centre uprights (900mm high), 3 No. of 970mm connectors (3 pieces) and 1 No. of 685mm connector (3 pieces), complete as per drawing no: 21_028-LTS-DR-ZZ-LS-L00-170001-L-A and Laboratory fit out specification document",null,"No",{"v":2,"d":"2 "},null,{"$f":"ROUND(F599*G599,2)","v":{"v":0,"d":"0.00"}}]
[]
[" F",null,"Bench frame consisting of 1 x left upright, 1 x right upright, 3 No. of centre uprights (900mm high), 4 No. of 970mm connectors (3 pieces), complete as per drawing no: 21_028-LTS-DR-ZZ-LS-L00-170001-L-A and Laboratory fit out specification document",null,"No",{"v":5,"d":"5 "},null,{"$f":"ROUND(F601*G601,2)","v":{"v":0,"d":"0.00"}}]
[]
[" A",null,"Bench frame consisting of 1 x left upright, 1 x right upright, 4 No. of centre uprights (900mm high), 4 No. of 970mm connectors (3 pieces) and 1 No. of 360mm connector (3 pieces), complete as per drawing no: 21_028-LTS-DR-ZZ-LS-L00-170001-L-A and Laboratory fit out specification document",null,"No",{"v":2,"d":"2 "},null,{"$f":"ROUND(F603*G603,2)","v":{"v":0,"d":"0.00"}}]
[]
[" B",null,"Bench frame consisting of 1 x left upright, 1 x right upright, 5 No. of centre uprights (900mm high), 6 No. of 970mm connectors (3 pieces), complete as per drawing no: 21_028-LTS-DR-ZZ-LS-L00-170001-L-A and Laboratory fit out specification document",null,"No",{"v":1,"d":"1 "},null,{"$f":"ROUND(F605*G605,2)","v":{"v":0,"d":"0.00"}}]
[]
[" C",null,"Bench frame consisting of 1 x left upright, 1 x right upright, 7 No. of centre uprights (900mm high), 7 No. of 970mm connectors (3 pieces) and 1 No. of 720mm connector (3 pieces), complete as per drawing no: 21_028-LTS-DR-ZZ-LS-L00-170001-L-A and Laboratory fit out specification document",null,"No",{"v":1,"d":"1 "},null,{"$f":"ROUND(F607*G607,2)","v":{"v":0,"d":"0.00"}}]
[]
[" D",null,"Bench frame consisting of 1 x left upright, 1 x right upright, 7 No. of centre uprights (900mm high), 8 No. of 970mm connectors (3 pieces), complete as per drawing no: 21_028-LTS-DR-ZZ-LS-L00-170001-L-A and Laboratory fit out specification document",null,"No",{"v":1,"d":"1 "},null,{"$f":"ROUND(F609*G609,2)","v":{"v":0,"d":"0.00"}}]
[]
[null,null,"50mm epoxy powder coated square tubing modular frame (Type FB212c), 600 x 900mm high"]
[]
[" E",null,"Bench frame type C_FB212c consisting of 1 x left upright, 1 x right upright, 1 No. of 900mm connectors ( 4 pieces), complete as per drawing no: 21_028-LTS-DR-ZZ-LS-L00-170001-L-A and Laboratory fit out specification document",null,"No",{"v":2,"d":"2 "},null,{"$f":"ROUND(F613*G613,2)","v":{"v":0,"d":"0.00"}}]
[]
[null,null,"32mm epoxy coated square tubing modular frame (Type FW211a), 600 x 900mm high"]
[]
[" A",null,"Bench frame type C_FW211a consisting of 1 x left upright, 1 x right upright, 1 No. of 1 140mm connectors (4 pieces), complete as per drawing no: 21_028-LTS-DR-ZZ-LS-L00-170001-L-A and Laboratory fit out specification document",null,"No",{"v":4,"d":"4 "},null,{"$f":"ROUND(F617*G617,2)","v":{"v":0,"d":"0.00"}}]
[]
[null,null,"32mm epoxy coated square tubing modular frame (Type FW232a), 800 x 900mm high"]
[]
[" B",null,"Bench frame type C_FW232a consisting of 1 x left upright, 1 x right upright, 1 No. of 1 140mm connectors (4 pieces), complete as per drawing no: 21_028-LTS-DR-ZZ-LS-L00-170001-L-A and Laboratory fit out specification document",null,"No",{"v":6,"d":"6 "},null,{"$f":"ROUND(F621*G621,2)","v":{"v":0,"d":"0.00"}}]
[]
[null,null,"Stainless Steel wall mounted coat hanging hooks"]
[]
[" C",null,"Coat hook with overall size 500 x 130mm High (5 Hooks), Type F_CH001, complete as per drawing no: 21_028-LTS-DR-ZZ-LS-L00-170001-L-A and Laboratory fit out specification document",null,"No",{"v":3,"d":"3 "},null,{"$f":"ROUND(F625*G625,2)","v":{"v":0,"d":"0.00"}}]
[]
[" D",null,"Coat hook with overall size 1 000 x 130mm High (10 Hooks), Type F_CH002, complete as per drawing no: 21_028-LTS-DR-ZZ-LS-L00-170001-L-A and Laboratory fit out specification document",null,"No",{"v":3,"d":"3 "},null,{"$f":"ROUND(F627*G627,2)","v":{"v":0,"d":"0.00"}}]
[]
[null,null,"SHELVING"]
[]
[null,null,"2mm Brushed stainless steel Grade 316 with perforated shelves"]
[]
[" A",null,"Type C_SF344d Brushed stainless steel floor standing shelving unit 4 174mm length x 450mm depth x 1 500mm high with 4 tiers fixed complete including all fixings, etc as per drawing no: 21_028-LTS-DR-ZZ-LS-L00-170001-L-A and Laboratory fit out specification document",null,"No",{"v":1,"d":"1 "},null,{"$f":"ROUND(F633*G633,2)","v":{"v":0,"d":"0.00"}}]
[]
[null,null,"2mm Bright white powder coated mild steel shelves"]
[]
[" B",null,"Type C_SW324d Powder coated steel wall band shelving unit 900mm length x 350mm depth x 1 500mm high with 4 tiers fixed complete including all fixings, etc as per drawing no: 21_028-LTS-DR-ZZ-LS-L00-170001-L-A and Laboratory fit out specification document",null,"No",{"v":6,"d":"6 "},null,{"$f":"ROUND(F637*G637,2)","v":{"v":0,"d":"0.00"}}]
[]
[null,null,"16mm Melamine shelves with edging to timber edges"]
[]
[" C",null,"Type C_SW324b Melamine wall band shelving unit 900mm length x 350mm depth x 1 500mm high with 4 tiers fixed complete including all fixings, etc as per drawing no: 21_028-LTS-DR-ZZ-LS-L00-170001-L-A and Laboratory fit out specification document",null,"No",{"v":10,"d":"10 "},null,{"$f":"ROUND(F641*G641,2)","v":{"v":0,"d":"0.00"}}]
[]
[null,null,"STORAGE CABINETS"]
[]
[null,null,"1mm Cold-rolled steel treated with phosphate Shelving with a baked powder epoxy coating (Colour: ''Slate Grey'' smooth finish)"]
[]
[" D",null,"Melamine floor standing locker cabinet unit 2 100mm high with 3 tiers, complete as per drawing no: 21_028-LTS-DR-ZZ-LS-L00-170001-L-A and Laboratory fit out specification document",null,"No",{"v":9,"d":"9 "},null,{"$f":"ROUND(F647*G647,2)","v":{"v":0,"d":"0.00"}}]
[]
[null,null,"PEGBOARDS"]
[]
[null,null,"Polypropylene Pegboard"]
[]
[" A",null,"1000 x 1000mm high epoxy resin pegboard, Type F_PB010 complete as per drawing no: 21_028-LTS-DR-ZZ-LS-L00-170001-L-A and Laboratory fit out specification document",null,"No",{"v":2,"d":"2 "},null,{"$f":"ROUND(F653*G653,2)","v":{"v":0,"d":"0.00"}}]
[]
[null,null,"BILL NO. 7"]
[]
[null,null,"CEILINGS, PARTITIONS, ETC"]
[]
[null,null,"NOTE:\tTenderers are advised to study the Model Preambles for Trades before pricing this bill"]
[]
[null,null,"SUPPLEMENTARY PREAMBLES"]
[]
[null,null,"Descriptions:"]
[]
[null,null,"Items described as \"nailed\" shall be deemed to be fixed with hardened steel nails or pins or shot pinned to brickwork or concrete"]
[]
[null,null,"Items described as \"plugged\" shall be deemed to include screwing to fibre, plastic or metal plugs at not exceeding 600mm centres, and where described as \"bolted\" the bolts have been given elsewhere"]
[]
[null,null,"Warranties and Guarantees"]
[]
[null,null,"A Warranty is to be provided for the laminated safety glass which warrants the product against delaminating and colour degradation for a period of not less than 5 years"]
[]
[null,null,"A Guarantee is to be provided for the powder coating which guarantees the product against peeling and discolouration of all powder coating for a period of not less than 15 years"]
[]
[null,null,"A Certificate of compliance is to be provided that all anodizing supplied meet with SANS 999 in all aspects"]
[]
[null,null,"Top hung windows"]
[]
[null,null,"Subcontractor are to allow for heavy duty friction hinges to all top hung windows in their pricing.  Friction hinges must be able to be tightened/adjusted."]
[]
[null,null,"Protection"]
[]
[null,null,"Contractor is to ensure that allowances are made for sufficient protection against damage, etc as required and in which case tenders are to allow for protective tape on frames and glazing according the relevant item in this document."]
[]
[null,null,"Finishes"]
[]
[null,null,"Final product shall be free from all sharp edges"]
[]
[null,null,"Ironmongery"]
[]
[null,null,"All ironmongery to be supplied by the Contractor unless otherwise specified. Contractors are to provide samples for approval by the Architect of these ironmongery on submission of their tenders. All ironmongery shall be approved by the Architect prior to installation  Sub Contractor to supply all relevant shopfronts with catches, handles, hinges etc. to match shop fronts and doors, all to the Architects approval"]
[]
[null,null,"All sliding gear to sliding doors to be supplied by the contractor unless otherwise specified. Contractors are to provide samples for approval by the Architect of these sliding gear on submission of their tenders. All sliding gear shall be approved by the Architect prior to installation"]
[]
[null,null,"Joints and Sealants"]
[]
[null,null,"All joints in frames shall be made by mechanical means  An approved silicone sealant is to be provided for both sides of all internal and external shop fronts between the aluminium frames and brick wall or concrete column and between the aluminium frame and plaster finish"]
[]
[null,null,"Powdercoating"]
[]
[null,null,"Aluminium surfaces to receive 50-80\"µm Matt Charcoal powder coating to be applied by a certified markholder of SANS 1578 and SANS 1796"]
[]
[null,null,"SUSPENDED CEILING"]
[]
[null,null,"\"OWAcoustic Constellation Premium Biologically\" ceiling panels, size 600 x 600 x 15mm thick, laid on fire rated OWAconstruct×‚\"® S3 exposed demountable Butt-cut T24 suspension system, comprising galvanised main tees and cross tees with main tees suspended by means of galvanised hangers at centres not exceeding 600mm with ceiling perimeter finished all installed to manufacturers instructions, refer to architect's drawing no: 2022_CSIR_A.03.3.1 and specification document"]
[]
[" A",null,"Ceilings suspended not exceeding 1m below timber structure",null,"m²",{"v":82,"d":"82 "},null,{"$f":"ROUND(F707*G707,2)","v":{"v":0,"d":"0.00"}}]
[]
[" B",null,"Extra over ceiling for 200 x 200mm opening for supply air grille, extractor grill, air conditioning unit, etc",null,"No",{"v":2,"d":"2 "},null,{"$f":"ROUND(F709*G709,2)","v":{"v":0,"d":"0.00"}}]
[]
[" C",null,"Extra over ceiling for 250 x 250mm opening for supply air grille, extractor grill, air conditioning unit, etc",null,"No",{"v":1,"d":"1 "},null,{"$f":"ROUND(F711*G711,2)","v":{"v":0,"d":"0.00"}}]
[]
[" D",null,"Extra over ceiling for 600 x 350mm opening for supply air grille, extractor grill, air conditioning unit, etc",null,"No",{"v":1,"d":"1 "},null,{"$f":"ROUND(F713*G713,2)","v":{"v":0,"d":"0.00"}}]
[]
[null,null,"12.5mm Gyproc Gyprex Vinyl Faced Gypsum ceiling panels, face-covered with white embossed vinyl, size 600 x 600mm, laid on Donn QRC exposed demountable butt-cut T37 suspension system, including galvanised main tees, cross tees, etc. with main tees suspended by means of galvanised hangers at centres not exceeding 1200mm, and all installed to manufacturer's instructions, refer to drawing no: 21_028-LTS-DR-ZZ-LS-L00-110101-L-A and Laboratory Internal Architectural Specification Document"]
[]
[" A",null,"Ceilings suspended not exceeding 1m below concrete soffits",null,"m²",{"v":353,"d":"353 "},null,{"$f":"ROUND(F717*G717,2)","v":{"v":0,"d":"0.00"}}]
[]
[" B",null,"Ceilings suspended not exceeding 1m below steel platform",null,"m²",{"v":64,"d":"64 "},null,{"$f":"ROUND(F719*G719,2)","v":{"v":0,"d":"0.00"}}]
[]
[" C",null,"Ceilings suspended not exceeding 1m below timber structure",null,"m²",{"v":57,"d":"57 "},null,{"$f":"ROUND(F721*G721,2)","v":{"v":0,"d":"0.00"}}]
[]
[" D",null,"Extra over ceiling for 200 x 200mm opening for supply air grille, extractor grill, air conditioning unit, etc",null,"No",{"v":5,"d":"5 "},null,{"$f":"ROUND(F723*G723,2)","v":{"v":0,"d":"0.00"}}]
[]
[" E",null,"Extra over ceiling for 250 x 250mm opening for supply air grille, extractor grill, air conditioning unit, etc",null,"No",{"v":2,"d":"2 "},null,{"$f":"ROUND(F725*G725,2)","v":{"v":0,"d":"0.00"}}]
[]
[" F",null,"Extra over ceiling for 300 x 300mm opening for supply air grille, extractor grill, air conditioning unit, etc",null,"No",{"v":2,"d":"2 "},null,{"$f":"ROUND(F727*G727,2)","v":{"v":0,"d":"0.00"}}]
[]
[" G",null,"Extra over ceiling for 400 x 400mm opening for supply air grille, extractor grill, air conditioning unit, etc",null,"No",{"v":2,"d":"2 "},null,{"$f":"ROUND(F729*G729,2)","v":{"v":0,"d":"0.00"}}]
[]
[" H",null,"Extra over ceiling for 600 x 300mm opening for supply air grille, extractor grill, air conditioning unit, etc",null,"No",{"v":3,"d":"3 "},null,{"$f":"ROUND(F731*G731,2)","v":{"v":0,"d":"0.00"}}]
[]
[" J",null,"Extra over ceiling for 315mm diameter opening for supply air grille, extractor grill, air conditioning unit, etc",null,"No",{"v":13,"d":"13 "},null,{"$f":"ROUND(F733*G733,2)","v":{"v":0,"d":"0.00"}}]
[]
[" K",null,"Extra over ceiling for 450mm diameter opening for supply air grille, extractor grill, air conditioning unit, etc",null,"No",{"v":4,"d":"4 "},null,{"$f":"ROUND(F735*G735,2)","v":{"v":0,"d":"0.00"}}]
[]
[" A",null,"Extra over suspended ceilings for circular cutting",null,"m",{"v":19,"d":"19 "},null,{"$f":"ROUND(F737*G737,2)","v":{"v":0,"d":"0.00"}}]
[]
[null,null,"Insulated EPS15 50mm core ceiling panels with and including ceiling suspension system, necessary hangers, grids, aluminium up-stand profiles or PVC U-channel profiles, etc. in strict accordance with manufacturer's and lab specialist's specifications. pre-coated Chromadek steel facing with polyester paint finish (Colour: Frost White), refer to drawing no: 21_028-LTS-DR-ZZ-LS-L00-110101-L-A and Laboratory Internal Architectural Specification Document"]
[]
[" B",null,"Clean room ceiling panels suspended not exceeding 1m below steel platform",null,"m²",{"v":12,"d":"12 "},null,{"$f":"ROUND(F741*G741,2)","v":{"v":0,"d":"0.00"}}]
[]
[" C",null,"Cold room ceiling panels suspended not exceeding 1m below concrete soffits",null,"m²",{"v":9,"d":"9 "},null,{"$f":"ROUND(F743*G743,2)","v":{"v":0,"d":"0.00"}}]
[]
[" D",null,"Clean room ceiling panels suspended not exceeding 1m below timber structure",null,"m²",{"v":63,"d":"63 "},null,{"$f":"ROUND(F745*G745,2)","v":{"v":0,"d":"0.00"}}]
[]
[" E",null,"Extra over ceiling for 200 x 250mm opening for supply air grille, extractor grill, air conditioning unit, etc",null,"No",{"v":6,"d":"6 "},null,{"$f":"ROUND(F747*G747,2)","v":{"v":0,"d":"0.00"}}]
[]
[" F",null,"Extra over ceiling for 250 x 250mm opening for supply air grille, extractor grill, air conditioning unit, etc",null,"No",{"v":3,"d":"3 "},null,{"$f":"ROUND(F749*G749,2)","v":{"v":0,"d":"0.00"}}]
[]
[" G",null,"Extra over ceiling for 300 x 200mm opening for supply air grille, extractor grill, air conditioning unit, etc",null,"No",{"v":1,"d":"1 "},null,{"$f":"ROUND(F751*G751,2)","v":{"v":0,"d":"0.00"}}]
[]
[" H",null,"Extra over ceiling for 350 x 300mm opening for supply air grille, extractor grill, air conditioning unit, etc",null,"No",{"v":1,"d":"1 "},null,{"$f":"ROUND(F753*G753,2)","v":{"v":0,"d":"0.00"}}]
[]
[" J",null,"Extra over ceiling for 400 x 250mm opening for supply air grille, extractor grill, air conditioning unit, etc",null,"No",{"v":1,"d":"1 "},null,{"$f":"ROUND(F755*G755,2)","v":{"v":0,"d":"0.00"}}]
[]
[" K",null,"Extra over ceiling for 400 x 400mm opening for supply air grille, extractor grill, air conditioning unit, etc",null,"No",{"v":1,"d":"1 "},null,{"$f":"ROUND(F757*G757,2)","v":{"v":0,"d":"0.00"}}]
[]
[" L",null,"Extra over ceiling for 450 x 250mm opening for supply air grille, extractor grill, air conditioning unit, etc",null,"No",{"v":1,"d":"1 "},null,{"$f":"ROUND(F759*G759,2)","v":{"v":0,"d":"0.00"}}]
[]
[" A",null,"Extra over ceiling for 600 x 600mm opening for supply air grille, extractor grill, air conditioning unit, etc",null,"No",{"v":8,"d":"8 "},null,{"$f":"ROUND(F761*G761,2)","v":{"v":0,"d":"0.00"}}]
[]
[null,null,"Cornices, perimeter trims, etc to suspended ceilings plugged and screwed at centres as per specification"]
[]
[" B",null,"\"Donn SM25\" or similar approved shadowline cornice moulding in vivid white plugged to wall",null,"m",{"v":499,"d":"499 "},null,{"$f":"ROUND(F765*G765,2)","v":{"v":0,"d":"0.00"}}]
[]
[" C",null,"20 x 20mm Aluminium trim cornice",null,"m",{"v":88,"d":"88 "},null,{"$f":"ROUND(F767*G767,2)","v":{"v":0,"d":"0.00"}}]
[]
[null,null,"BULKHEADS"]
[]
[null,null,"9.5mm \"Gyproc Rhinoboard\" bulkheads with Joints to be covered with Rhinotape fixed over joints, then apply \"cretestone\"€\u009d for final board finish skim plaster to a smooth polished surface to the thickness recommended by the manufacturer on a Donn T37K concealed tee suspension system including main and cross tees, necessary hangers, grids, etc, complete in its entirety as per drawings: \"2022_CSIR_A.03.3.1\", \"21_028-LTS-DR-ZZ-LS-L00-110101-L-A\" and architect's specification document"]
[]
[" D",null,"Vertical bulkhead 250mm high, including closing up at the top",null,"m",{"v":23,"d":"23 "},null,{"$f":"ROUND(F773*G773,2)","v":{"v":0,"d":"0.00"}}]
[]
[" E",null,"Vertical bulkhead 285mm high, including closing up at the top",null,"m",{"v":10,"d":"10 "},null,{"$f":"ROUND(F775*G775,2)","v":{"v":0,"d":"0.00"}}]
[]
[" F",null,"Vertical bulkhead 300mm high, including closing up at the top",null,"m",{"v":2,"d":"2 "},null,{"$f":"ROUND(F777*G777,2)","v":{"v":0,"d":"0.00"}}]
[]
[" G",null,"Vertical bulkhead 460mm high, including closing up at the top",null,"m",{"v":23,"d":"23 "},null,{"$f":"ROUND(F779*G779,2)","v":{"v":0,"d":"0.00"}}]
[]
[" H",null,"Horizontal bulkhead 700mm wide",null,"m",{"v":21,"d":"21 "},null,{"$f":"ROUND(F781*G781,2)","v":{"v":0,"d":"0.00"}}]
[]
[" J",null,"Horizontal bulkhead 1270mm wide",null,"m",{"v":6,"d":"6 "},null,{"$f":"ROUND(F783*G783,2)","v":{"v":0,"d":"0.00"}}]
[]
[null,null,"PARTITIONS, ETC"]
[]
[null,null,"\"€œGyproc Rhinoboard Soundbloc\" drywall partition consisting of one layer of 15mm \"Rhinoboard\" either side of 63.5mm stud and track system at 220mm centres with tape and joint finish, wall surface to be finished with minimum 3mm thick RhinoLite multi-purpose all in accordance with the manufacturers recommendations, refer to architect's drawing no: 2022_CSIR_A.03.3.1 and specification document"]
[]
[" A",null,"Partitioning 2 500mm high with bottom track plugged to floor and top track fixed complete",null,"m",{"v":4,"d":"4 "},null,{"$f":"ROUND(F789*G789,2)","v":{"v":0,"d":"0.00"}}]
[]
[" B",null,"Partitioning 2 800mm high with bottom track plugged to floor and top track fixed complete",null,"m",{"v":56,"d":"56 "},null,{"$f":"ROUND(F791*G791,2)","v":{"v":0,"d":"0.00"}}]
[]
[" C",null,"Partitioning 3 000mm high with bottom track plugged to floor and top track fixed complete",null,"m",{"v":34,"d":"34 "},null,{"$f":"ROUND(F793*G793,2)","v":{"v":0,"d":"0.00"}}]
[]
[" D",null,"Partitioning 3 060mm high with bottom track plugged to floor and top track fixed complete",null,"m",{"v":7,"d":"7 "},null,{"$f":"ROUND(F795*G795,2)","v":{"v":0,"d":"0.00"}}]
[]
[" E",null,"Extra over drywall partitions 2 500mm high for vertical abutment",null,"No",{"v":1,"d":"1 "},null,{"$f":"ROUND(F797*G797,2)","v":{"v":0,"d":"0.00"}}]
[]
[" F",null,"Extra over drywall partitions 2 500mm high for corner",null,"No",{"v":1,"d":"1 "},null,{"$f":"ROUND(F799*G799,2)","v":{"v":0,"d":"0.00"}}]
[]
[" G",null,"Extra over drywall partitions 2 800mm high for vertical abutment",null,"No",{"v":7,"d":"7 "},null,{"$f":"ROUND(F801*G801,2)","v":{"v":0,"d":"0.00"}}]
[]
[" H",null,"Extra over drywall partitions 2 800mm high for corner",null,"No",{"v":4,"d":"4 "},null,{"$f":"ROUND(F803*G803,2)","v":{"v":0,"d":"0.00"}}]
[]
[" J",null,"Extra over drywall partitions 2 800mm high for T-intersection",null,"No",{"v":7,"d":"7 "},null,{"$f":"ROUND(F805*G805,2)","v":{"v":0,"d":"0.00"}}]
[]
[" K",null,"Extra over drywall partitions 3 000mm high for vertical abutment",null,"No",{"v":5,"d":"5 "},null,{"$f":"ROUND(F807*G807,2)","v":{"v":0,"d":"0.00"}}]
[]
[" L",null,"Extra over drywall partitions 3 000mm high for corners",null,"No",{"v":1,"d":"1 "},null,{"$f":"ROUND(F809*G809,2)","v":{"v":0,"d":"0.00"}}]
[]
[" A",null,"Extra over drywall partitions 3 000mm high for T-intersection",null,"No",{"v":4,"d":"4 "},null,{"$f":"ROUND(F811*G811,2)","v":{"v":0,"d":"0.00"}}]
[]
[" B",null,"Extra over drywall partitions 3 060mm high for Vertical Abutments",null,"No",{"v":1,"d":"1 "},null,{"$f":"ROUND(F813*G813,2)","v":{"v":0,"d":"0.00"}}]
[]
[null,null,"Extra over drywall partition for opening, doors, windows, shopfront, etc"]
[]
[" C",null,"Extra over partition 3060mm high for shopfront type SF01 with size 6 192 x 2 400mm high including powder coated aluminium door frame,  including ironmongery, additional studding, trimming, concealed edges etc. complete in its entirety as per the architect's drawing: 2022_CSIR_A.03.1.2 and door schedule 2022_CSIR_A.10.13",null,"No",{"v":1,"d":"1 "},null,{"$f":"ROUND(F817*G817,2)","v":{"v":0,"d":"0.00"}}]
[]
[" D",null,"Extra over partition 3000mm high for shopfront type SF02 with size 3 492 x 2 100mm high including powder coated aluminium door frame,  including ironmongery, additional studding, trimming, concealed edges etc. complete in its entirety as per the architect's drawing: 2022_CSIR_A.03.1.2 and door schedule 2022_CSIR_A.10.14",null,"No",{"v":1,"d":"1 "},null,{"$f":"ROUND(F819*G819,2)","v":{"v":0,"d":"0.00"}}]
[]
[" E",null,"Extra over partition 3000mm high for shopfront type SF03 with size 2 100 x 2 100mm high including powder coated aluminium door frame,  including ironmongery, additional studding, trimming, concealed edges etc. complete in its entirety as per the architect's drawing: 2022_CSIR_A.03.1.2 and door schedule 2022_CSIR_A.10.15",null,"No",{"v":2,"d":"2 "},null,{"$f":"ROUND(F821*G821,2)","v":{"v":0,"d":"0.00"}}]
[]
[" F",null,"Extra over partition 3000mm high for shopfront type SF03 with size 2 100 x 2 100mm high including powder coated aluminium door frame,  including ironmongery, additional studding, trimming, concealed edges etc. complete in its entirety as per the architect's drawing: 2022_CSIR_A.03.1.2 and door schedule 2022_CSIR_A.10.16",null,"No",{"v":1,"d":"1 "},null,{"$f":"ROUND(F823*G823,2)","v":{"v":0,"d":"0.00"}}]
[]
[" A",null,"Extra over partition 3000mm high for door type D_AD121c with size 900 x 2 100mm high including powder coated aluminium door frame,  including ironmongery set 1, additional studding, trimming, concealed edges etc. complete in its entirety as per the architect's drawing: 2022_CSIR_A.03.1.2 and door schedule 2022_CSIR_A.10.11",null,"No",{"v":1,"d":"1 "},null,{"$f":"ROUND(F825*G825,2)","v":{"v":0,"d":"0.00"}}]
[]
[" B",null,"Extra over partition 2800mm high for door type D_AD141c with size 1 100 x 2 100mm high including powder coated aluminium door frame,  including ironmongery set 1, additional studding, trimming, concealed edges etc. complete in its entirety as per the architect's drawing: 21_028-LTS-DR-ZZ-LS-L00-110001-L-A and door schedule 2022_CSIR_A.10.22",null,"No",{"v":1,"d":"1 "},null,{"$f":"ROUND(F827*G827,2)","v":{"v":0,"d":"0.00"}}]
[]
[" C",null,"Extra over partition 3000mm high for door type D_AD121c with size 900 x 2 100mm high including powder coated aluminium door frame,  including ironmongery set 1, additional studding, trimming, concealed edges etc. complete in its entirety as per the architect's drawing: 21_028-LTS-DR-ZZ-LS-L00-110001-L-A and door schedule 2022_CSIR_A.10.5",null,"No",{"v":2,"d":"2 "},null,{"$f":"ROUND(F829*G829,2)","v":{"v":0,"d":"0.00"}}]
[]
[" D",null,"Extra over partition 2500mm high for door type D_AD193c with size 1 800 x 2 100mm high including powder coated aluminium door frame,  including ironmongery set 1, additional studding, trimming, concealed edges etc. complete in its entirety as per the architect's drawing: 21_028-LTS-DR-ZZ-LS-L00-110001-L-A and door schedule 2022_CSIR_A.10.7",null,"No",{"v":1,"d":"1 "},null,{"$f":"ROUND(F831*G831,2)","v":{"v":0,"d":"0.00"}}]
[]
[" E",null,"Extra over partition 2800mm high for door type D_AD193c with size 1 800 x 2 100mm high including powder coated aluminium door frame,  including ironmongery set 1, additional studding, trimming, concealed edges etc. complete in its entirety as per the architect's drawing: 21_028-LTS-DR-ZZ-LS-L00-110001-L-A and door schedule 2022_CSIR_A.10.7",null,"No",{"v":1,"d":"1 "},null,{"$f":"ROUND(F833*G833,2)","v":{"v":0,"d":"0.00"}}]
[]
[" A",null,"Extra over partition 2800mm high for door type D_AD173c with size 1 400 x 2 100mm high including powder coated aluminium door frame,  including ironmongery set 1, additional studding, trimming, concealed edges etc. complete in its entirety as per the architect's drawing: 21_028-LTS-DR-ZZ-LS-L00-110002-L-A and door schedule 2022_CSIR_A.10.20",null,"No",{"v":3,"d":"3 "},null,{"$f":"ROUND(F835*G835,2)","v":{"v":0,"d":"0.00"}}]
[]
[" B",null,"Extra over partition 2800mm high for window type W_AF131a with size 1 200 x 900mm, complete in its entirety as per the architect's drawing: 21_028-LTS-DR-ZZ-LS-L00-110002-L-A and window schedule 2022_CSIR_A.10.31",null,"No",{"v":1,"d":"1 "},null,{"$f":"ROUND(F837*G837,2)","v":{"v":0,"d":"0.00"}}]
[]
[" C",null,"Extra over partition 2800mm high for window type W_AF151a with size 1 800 x 900mm, complete in its entirety as per the architect's drawing: 21_028-LTS-DR-ZZ-LS-L00-110002-L-A and window schedule 2022_CSIR_A.10.31",null,"No",{"v":2,"d":"2 "},null,{"$f":"ROUND(F839*G839,2)","v":{"v":0,"d":"0.00"}}]
[]
[" D",null,"Extra over partition 2800mm high for Aluminium glazed window wall type IS_T01a 900mm high including frame, ironmongery, etc. complete in its entirety as per the architect's drawing: 21_028-LTS-DR-ZZ-LS-L00-110002-L-A and window schedule 2022_CSIR_A.10.29",null,"m",{"v":8,"d":"8 "},null,{"$f":"ROUND(F841*G841,2)","v":{"v":0,"d":"0.00"}}]
[]
[null,null,"\"€œLafarge\" gypsum drywall partition type LPF64-60/3 consisting of one layer of 12.5mm \"Fire Check Board\" either side of 64mm stud and track system at 600mm centres with tape and joint finish"]
[]
[" E",null,"60min Fire Rated Drywall 3 000mm high with bottom track plugged to floor and top track fixed to ceiling",null,"m",{"v":5,"d":"5 "},null,{"$f":"ROUND(F845*G845,2)","v":{"v":0,"d":"0.00"}}]
[]
[" F",null,"60min Fire Rated Drywall 4 500mm high with bottom track plugged to floor and top track fixed to ceiling",null,"m",{"v":10,"d":"10 "},null,{"$f":"ROUND(F847*G847,2)","v":{"v":0,"d":"0.00"}}]
[]
[" G",null,"Extra over fire rated drywall partitions 3 000mm high for vertical abutments",null,"No",{"v":2,"d":"2 "},null,{"$f":"ROUND(F849*G849,2)","v":{"v":0,"d":"0.00"}}]
[]
[" A",null,"Extra over fire rated drywall partitions 4 500mm high for vertical abutments",null,"No",{"v":2,"d":"2 "},null,{"$f":"ROUND(F851*G851,2)","v":{"v":0,"d":"0.00"}}]
[]
[null,null,"Extra over 60min fire rated drywall for opening, doors, windows, shopfront, etc"]
[]
[" B",null,"Extra over fire rated drywall partition for 60min Fire Rated door type D_TD183b size 1 500 x 2 100mm high hung to and including single rebate steel door frame, ironmongery, additional studding, cut-out for viewing panel, trimming, concealed edges etc. complete in its entirety as per the architect's drawing: 2022_CSIR_A.03.1.2 and door schedule 2022_CSIR_A.10.12",null,"No",{"v":1,"d":"1 "},null,{"$f":"ROUND(F855*G855,2)","v":{"v":0,"d":"0.00"}}]
[]
[null,null,"CLEAN ROOM PANELS"]
[]
[null,null,"Insulated EPS15 clean room panels consisting of 150mm thick expanded polystyrene 15 +3kg/m3 core panel, 0.5mm thick pre-coated with Chromadek steel facing with polyester paint (Colour: Frost white - 30% gloss) fixed in accordance with manufacturer's and lab specialist's specifications"]
[]
[" C",null,"Clean room panels 2 600mm high",null,"m",{"v":23,"d":"23 "},null,{"$f":"ROUND(F861*G861,2)","v":{"v":0,"d":"0.00"}}]
[]
[" D",null,"Clean room panels 2 800mm high",null,"m",{"v":25,"d":"25 "},null,{"$f":"ROUND(F863*G863,2)","v":{"v":0,"d":"0.00"}}]
[]
[" E",null,"Extra over clean room panels 2 600mm high for corners",null,"No",{"v":1,"d":"1 "},null,{"$f":"ROUND(F865*G865,2)","v":{"v":0,"d":"0.00"}}]
[]
[" F",null,"Extra over clean room panels 2 600mm high for vertical abutments",null,"No",{"v":1,"d":"1 "},null,{"$f":"ROUND(F867*G867,2)","v":{"v":0,"d":"0.00"}}]
[]
[" G",null,"Extra over clean room panels 2 600mm high for T-intersections",null,"No",{"v":1,"d":"1 "},null,{"$f":"ROUND(F869*G869,2)","v":{"v":0,"d":"0.00"}}]
[]
[" H",null,"Extra over clean room panels 2 800mm high for corners",null,"No",{"v":1,"d":"1 "},null,{"$f":"ROUND(F871*G871,2)","v":{"v":0,"d":"0.00"}}]
[]
[" J",null,"Extra over clean room panels 2 800mm high for vertical abutments",null,"No",{"v":3,"d":"3 "},null,{"$f":"ROUND(F873*G873,2)","v":{"v":0,"d":"0.00"}}]
[]
[" A",null,"Extra over clean room panels 2 800mm high for T-intersections",null,"No",{"v":6,"d":"6 "},null,{"$f":"ROUND(F875*G875,2)","v":{"v":0,"d":"0.00"}}]
[]
[null,null,"Extra over for 150mm Thick Chromadek cleanroom doors with viewing panels of 6mm laminated safety glass and airtight rubber seals as per LTS drawings 20_048-LTS-DR-ZZ-LS-L02-170003 Rev 0"]
[]
[" B",null,"Extra over clean room panels for window type W_AF151a with size 1 800 x 900mm, complete in its entirety as per the architect's drawing: 21_028-LTS-DR-ZZ-LS-L00-110001-L-A and window schedule 2022_CSIR_A.10.33",null,"No",{"v":2,"d":"2 "},null,{"$f":"ROUND(F879*G879,2)","v":{"v":0,"d":"0.00"}}]
[]
[" C",null,"Extra over clean room panels for custom made cold room door type D_CD121c size 900 x 2 100mm high  including ironmongery set 1, additional studding, trimming, concealed edges etc. complete in its entirety as per the architect's drawing: 21_028-LTS-DR-ZZ-LS-L00-110002-L-A and door schedule 2022_CSIR_A.10.24",null,"No",{"v":1,"d":"1 "},null,{"$f":"ROUND(F881*G881,2)","v":{"v":0,"d":"0.00"}}]
[]
[" D",null,"Extra over clean room panels for custom made aluminium door type D_AD141b size 1 100 x 2 100mm high  including ironmongery set 2, additional studding, trimming, concealed edges etc. complete in its entirety as per the architect's drawing: 21_028-LTS-DR-ZZ-LS-L00-110001-L-A and door schedule 2022_CSIR_A.10.4",null,"No",{"v":6,"d":"6 "},null,{"$f":"ROUND(F883*G883,2)","v":{"v":0,"d":"0.00"}}]
[]
[" E",null,"Extra over clean room panels for custom made aluminium laboratory door type D_AD193b size 1 800 x 2 100mm high  including ironmongery set 2, additional studding, trimming, concealed edges etc. complete in its entirety as per the architect's drawing: 21_028-LTS-DR-ZZ-LS-L00-110001-L-A and door schedule 2022_CSIR_A.10.6",null,"No",{"v":2,"d":"2 "},null,{"$f":"ROUND(F885*G885,2)","v":{"v":0,"d":"0.00"}}]
[]
[null,null,"BILL NO. 8"]
[]
[null,null,"FLOOR COVERINGS, ETC"]
[]
[null,null,"NOTE:\tTenderers are advised to study the Model Preambles for Trades before pricing this bill"]
[]
[null,null,"SUPPLEMENTARY PREAMBLES"]
[]
[null,null,"Fixing"]
[]
[null,null,"Floor coverings, wall linings, skirtings, etc shall, where applicable, be fixed with adhesive as recommended by the manufacturers of the flooring, linings, etc"]
[]
[null,null,"Surface preparation, priming, curing, cleaning etc"]
[]
[null,null,"Descriptions of the items below are deemed to include all necessary preparation, priming, mixing, curing, cleaning etc as prescribed by the manufacturers of the various products."]
[]
[null,null,"CARPETS, ETC"]
[]
[null,null,"500 x 500mm \"Belgotex Matrix\" carpet tiles installed on screeded floors in accordance with the manufactures instructions, as per the architects drawing 2022_CSIR_A.03.1.3 and 2022_CSIR_A.03.1.2 and specification document"]
[]
[" A",null,"On existing floors and landings",null,"m²",{"v":106,"d":"106 "},null,{"$f":"ROUND(F907*G907,2)","v":{"v":0,"d":"0.00"}}]
[]
[null,null,"VINYL, ETC"]
[]
[null,null,"\"GERFLOR Mipolam Non-directional PUR \" 2mm flexible flooring, on screed floors with approved adhesive all in accordance with the manufacturer's instructions, as per the architects drawing 2022_CSIR_A.03.1.3 and 2022_CSIR_A.03.1.2 and specification document"]
[]
[" A",null,"On floors and landings",null,"m²",{"v":380,"d":"380 "},null,{"$f":"ROUND(F913*G913,2)","v":{"v":0,"d":"0.00"}}]
[]
[" B",null,"Turn-up 150mm high with capping strip including 20mm cove fillet complete as per architects drawing",null,"m",{"v":274,"d":"274 "},null,{"$f":"ROUND(F915*G915,2)","v":{"v":0,"d":"0.00"}}]
[]
[null,null,"EPOXY"]
[]
[null,null,"Flowcrete Flowfresh SL (2mm) or similar approved, as per the architects drawing 2022_CSIR_A.03.1.3 and 2022_CSIR_A.03.1.2, specification document and laboratory internal architectural specification document"]
[]
[" C",null,"2.5mm epoxy floor covering",null,"m²",{"v":297,"d":"297 "},null,{"$f":"ROUND(F921*G921,2)","v":{"v":0,"d":"0.00"}}]
[]
[null,null,"Derakane -Signia Epoxy Vinyl Ester Resin (411-45) (6.5mm) or similar approved, as per the architects drawing 2022_CSIR_A.03.1.3 and 2022_CSIR_A.03.1.2, specification document and laboratory internal architectural specification document"]
[]
[" D",null,"6.5mm epoxy floor covering",null,"m²",{"v":18,"d":"18 "},null,{"$f":"ROUND(F925*G925,2)","v":{"v":0,"d":"0.00"}}]
[]
[" E",null,"Turn-up 150mm high with capping strip including 20mm cove fillet complete as per architects drawing",null,"m",{"v":249,"d":"249 "},null,{"$f":"ROUND(F927*G927,2)","v":{"v":0,"d":"0.00"}}]
[]
[null,null,"POLISH, SEALER, ETC"]
[]
[" F",null,"Strip and apply one coat approved wax polish on vinyl flooring",null,"m²",{"v":421,"d":"421 "},null,{"$f":"ROUND(F931*G931,2)","v":{"v":0,"d":"0.00"}}]
[]
[null,null,"CORNER PROTECTORS, DIVIDING STRIPS, ETC"]
[]
[null,null,"\"Kirk Marketing\" or similar approved installed as per manufactures recommendations"]
[]
[" A",null,"46 x 11mm Anodised aluminium (code: ACGSE100) dividing strip",null,"m",{"v":8,"d":"8 "},null,{"$f":"ROUND(F937*G937,2)","v":{"v":0,"d":"0.00"}}]
[]
[null,null,"BILL NO. 9"]
[]
[null,null,"STRUCTURAL STEELWORK"]
[]
[null,null,"NOTE: \tTenderers are advised to study the Model Preambles for Trades before pricing this bill"]
[]
[null,null,"SUPPLEMENTARY PREAMBLES"]
[]
[null,null,"Descriptions"]
[]
[null,null,"Descriptions of bolts shall be deemed to include nuts and washersDescriptions of L-shaped and U-shaped anchor bolts shall be deemed to include bending, threading, nuts and washers and embedding in concrete Descriptions of expansion anchors and bolts and chemical anchors and bolts shall be deemed to include nuts, washers and mortices in brickwork or concreteWhere anchor bolts are described as embedded in sides or soffits of concrete it shall be deemed to include holes through formwork"]
[]
[null,null,"Structural Steelwork"]
[]
[null,null,"All structural steelwork shall be fabricated and erected in accordance with the latest edition of SABS 1200H  All dimensions shall be checked on site before shop drawings commence. Any discrepancies shall be brought to the attention of the engineer  A complete set of shop drawings shall be submitted to the engineer for approval before fabrication commences. The contractor shall allow one week for checking and approval by the engineer, and shall also allow for any possible chances to shop drawings  The contractor shall design all welds and, where necessary, gussets of sufficient strength, shall be approved to obtain the required weld strength  Setting out points (S.O.P\"€™s) at member centroids shall conform to those shown on general arrangement drawings. No eccentricities, except those shown on the engineer\"€™s drawings, shall be allowed  All structural steelwork shall be grade 350WA  A certificate from the steel manufacturer in which the grade of the structural steel is verified shall be handed to the engineer for approval  All bolts and lugs shall be grade 8.8 unless otherwise noted and shall be deemed to be included  All welds to be 6mm fillet welds  The proposed method and sequence of erection of the structure shall be submitted to the engineer for written approval. Such submission is to take place at time of shop drawing submittal. The contractor shall indicate the proposed method of propping to ensure stability of the structure during erection.  Such stability during erection remains the contractor's responsibility. Where temporary bracing and propping is necessary, the contractor shall be responsible for the design, erection, maintenance and removal (where necessary) of such supports. Proposal of such bracing or propping shall be submitted to the engineer at an early stage for written approval  Structural steel to be engineered to be smooth i.e. no welding spatter, sharp edges, slag etc. should be present prior to the application of the final painting coat"]
[]
[null,null,"Galvanizing Specification"]
[]
[null,null,"All galvanised work to be 85 micron, in strict accordance with the S.A. Galvanising Association Specifications"]
[]
[null,null,"GALVANISED STEEL PURLINS, GIRTS, BRACING, ETC"]
[]
[null,null,"Welded roof rafter of angle rafters, tie beams, rails, struts, braces, cleats, etc and flat bearer, gusset and connection plates, bolted to brick walls"]
[]
[" A",null,"140 x 73mm x 12.9kg/m IPE rafter",null,"t",0.12,null,{"$f":"ROUND(F963*G963,2)","v":{"v":0,"d":"0.00"}}]
[]
[null,null,"Purlins and girts, bolted to brick walls"]
[]
[" B",null,"125 x 50 x 20 x 2.0mm Thick cold-formed lipped channel roof purlins",null,"t",0.08,null,{"$f":"ROUND(F967*G967,2)","v":{"v":0,"d":"0.00"}}]
[]
[null,null,"Bolts, etc to trusses"]
[]
[" C",null,"High tensile bolts",null,"t",0.08,null,{"$f":"ROUND(F971*G971,2)","v":{"v":0,"d":"0.00"}}]
[]
[" D",null,"M20 x 500mm Diameter chemical anchor and bolt",null,"No",{"v":7,"d":"7 "},null,{"$f":"ROUND(F973*G973,2)","v":{"v":0,"d":"0.00"}}]
[]
[null,null,"GALVANISED STEEL STAIRS, BALUSTRADING, HANDRAILS, FLOORING, ETC"]
[]
[null,null,"Welded columns in single lengths with flat base, cap, bearer and connection plates, bolted to concrete"]
[]
[" E",null,"152 x 152mm x 23.4kg/m I-section columns",null,"t",0.75,null,{"$f":"ROUND(F979*G979,2)","v":{"v":0,"d":"0.00"}}]
[]
[null,null,"Welded beams in single lengths with flat bearer and connection plates, bracing, anti-sag rails, angled bearers, flat connection plates, gusset plates, compound rails formed of flats and angles welded and bolted, etc bolted to steel"]
[]
[" F",null,"50 x 50 x 5mm x 3.77kg/m Angle",null,"t",0.05,null,{"$f":"ROUND(F983*G983,2)","v":{"v":0,"d":"0.00"}}]
[]
[" G",null,"70 x 70 x 6mm x 6.38kg/m Angle",null,"t",0.03,null,{"$f":"ROUND(F985*G985,2)","v":{"v":0,"d":"0.00"}}]
[]
[" A",null,"200 x 75 x 20 x 2.5mm thick cold-formed lipped channel bearers",null,"t",0.35,null,{"$f":"ROUND(F987*G987,2)","v":{"v":0,"d":"0.00"}}]
[]
[" B",null,"200 x 75 x 20 x 2.5mm thick cold-formed lipped channel stringers",null,"t",0.22,null,{"$f":"ROUND(F989*G989,2)","v":{"v":0,"d":"0.00"}}]
[]
[" C",null,"RS 40 x 4.5mm Rectagrid landing to stairs",null,"m²",{"v":32,"d":"32 "},null,{"$f":"ROUND(F991*G991,2)","v":{"v":0,"d":"0.00"}}]
[]
[" D",null,"RS 40 x 4.5mm Rectagrid threads to stairs",null,"m²",{"v":19,"d":"19 "},null,{"$f":"ROUND(F993*G993,2)","v":{"v":0,"d":"0.00"}}]
[]
[" E",null,"Non-slip perforated nosing to RS 40 x 4.5mm steel rectagrid stair thread",null,"m",{"v":68,"d":"68 "},null,{"$f":"ROUND(F995*G995,2)","v":{"v":0,"d":"0.00"}}]
[]
[null,null,"Galvanised steel balustrade 1,000mm high with 38 x 38 x 3mm steel square hollow section handrail, solid cast pin with 16dia base, 19mm internal rails as equal spacing, 38 x 38 x 3mm steel square hollow section posts at equal spacing, 100mm diameter x 5mm cup flange base plate bolted to steel with and including chemical anchor bolts including all bends, ends, knees, paint, etc., all in accordance with the Architect' drawings 2022_CSIR_A.08.3"]
[]
[" F",null,"To raking stairs",null,"m",{"v":26,"d":"26 "},null,{"$f":"ROUND(F999*G999,2)","v":{"v":0,"d":"0.00"}}]
[]
[" G",null,"To staircase landings",null,"m",{"v":32,"d":"32 "},null,{"$f":"ROUND(F1001*G1001,2)","v":{"v":0,"d":"0.00"}}]
[]
[null,null,"Bolts, etc"]
[]
[" H",null,"High tensile bolts",null,"t",0.24,null,{"$f":"ROUND(F1005*G1005,2)","v":{"v":0,"d":"0.00"}}]
[]
[null,null,"FASTENERS, PLATES, ETC"]
[]
[" J",null,"6mm thick plate with size 200mm x 200mm",null,"No",{"v":11,"d":"11 "},null,{"$f":"ROUND(F1009*G1009,2)","v":{"v":0,"d":"0.00"}}]
[]
[null,null,"COLUMN AND BEAM CONNECTIONS"]
[]
[null,null,"Bolts, end plates, top plates, etc"]
[]
[" K",null,"30mm Diameter M16 anchor bolt 200mm long embedded in concrete",null,"No",{"v":44,"d":"44 "},null,{"$f":"ROUND(F1015*G1015,2)","v":{"v":0,"d":"0.00"}}]
[]
[null,null,"TESTS"]
[]
[null,null,"Weld testing"]
[]
[" A",null,"Provide the sum of R10,000.00 (Ten Thousand) for quality control inspection by an authorised independent inspection authority, to be used as directed by the Principal Agent and deducted in whole or in part if not required",null,"Item",{"v":1,"d":"1 "},{"v":10000,"d":"10,000.00"},{"$f":"ROUND(F1021*G1021,2)","v":{"v":10000,"d":"10,000.00"}}]
[]
[null,null,"BILL NO. 10"]
[]
[null,null,"METALWORK"]
[]
[null,null,"SUPPLEMENTARY PREAMBLES"]
[]
[null,null,"Warranties and Guarantees"]
[]
[null,null,"A Warranty is to be provided for the laminated safety glass which warrants the product against delaminating and colour degradation for a period of not less than 5 years"]
[]
[null,null,"A Guarantee is to be provided for the powder coating which guarantees the product against peeling and discolouration of all powder coating for a period of not less than 15 years"]
[]
[null,null,"A Certificate of compliance is to be provided that all anodizing supplied meet with SANS 999 in all aspects"]
[]
[null,null,"Top hung windows"]
[]
[null,null,"Subcontractor are to allow for heavy duty friction hinges to all top hung windows in their pricing.  Friction hinges must be able to be tightened/adjusted."]
[]
[null,null,"Protection"]
[]
[null,null,"Contractor is to ensure that allowances are made for sufficient protection against damage, etc as required and in which case tenders are to allow for protective tape on frames and glazing according the relevant item in this document."]
[]
[null,null,"Finishes"]
[]
[null,null,"Final product shall be free from all sharp edges"]
[]
[null,null,"Ironmongery"]
[]
[null,null,"All ironmongery to be supplied by the Contractor unless otherwise specified. Contractors are to provide samples for approval by the Architect of these ironmongery on submission of their tenders. All ironmongery shall be approved by the Architect prior to installation  Sub Contractor to supply all relevant shopfronts with catches, handles, hinges etc. to match shop fronts and doors, all to the Architects approval"]
[]
[null,null,"All sliding gear to sliding doors to be supplied by the contractor unless otherwise specified. Contractors are to provide samples for approval by the Architect of these sliding gear on submission of their tenders. All sliding gear shall be approved by the Architect prior to installation"]
[]
[null,null,"Joints and Sealants"]
[]
[null,null,"All joints in frames shall be made by mechanical means  An approved silicone sealant is to be provided for both sides of all internal and external shop fronts between the aluminium frames and brick wall or concrete column and between the aluminium frame and plaster finish"]
[]
[null,null,"Powdercoating"]
[]
[null,null,"Aluminium surfaces to receive 50-80\"µm Matt Charcoal powder coating to be applied by a certified markholder of SANS 1578 and SANS 1796"]
[]
[null,null,"ALUMINIUM WINDOWS, DOORS & SHOPFRONTS"]
[]
[null,null,"Powder coated aluminium door with single glazed Laminated safety glass, ironmongery, sealing and plugged to brickwork or concrete all in accordance with specifications and architect's drawings"]
[]
[" A",null,"Custom made aluminium door type D_AD121c size 900 x 2 100mm high hung to and including powder coated aluminium door frame, additional studding, trimming, concealed edges etc. complete in its entirety as per the architect's drawing: 21_028-LTS-DR-ZZ-LS-L00-110002-L-A and door schedule 2022_CSIR_A.10.18 and 21_028-LTS-DR-ZZ-LS-L00-170002-L-A",null,"No",{"v":1,"d":"1 "},null,{"$f":"ROUND(F1067*G1067,2)","v":{"v":0,"d":"0.00"}}]
[]
[" B",null,"Custom made aluminium door type D_AD141c size 1 100 x 2 100mm high hung to and including powder coated aluminium door frame, additional studding, trimming, concealed edges etc. complete in its entirety as per the architect's drawing: 21_028-LTS-DR-ZZ-LS-L00-110001-L-A and door schedule 2022_CSIR_A.10.10 and 21_028-LTS-DR-ZZ-LS-L00-170002-L-A",null,"No",{"v":1,"d":"1 "},null,{"$f":"ROUND(F1069*G1069,2)","v":{"v":0,"d":"0.00"}}]
[]
[" C",null,"Custom made aluminium door type D_AD141c size 1 100 x 2 100mm high hung to and including powder coated aluminium door frame, additional studding, trimming, concealed edges etc. complete in its entirety as per the architect's drawing: 21_028-LTS-DR-ZZ-LS-L00-110002-L-A and door schedule 2022_CSIR_A.10.22 and 21_028-LTS-DR-ZZ-LS-L00-170002-L-A",null,"No",{"v":1,"d":"1 "},null,{"$f":"ROUND(F1071*G1071,2)","v":{"v":0,"d":"0.00"}}]
[]
[" D",null,"Custom made aluminium door type D_AD183c size 1 500 x 2 100mm high hung to and including powder coated aluminium door frame, additional studding, trimming, concealed edges etc. complete in its entirety as per the architect's drawing: 21_028-LTS-DR-ZZ-LS-L00-110001-L-A and door schedule 2022_CSIR_A.10.8 and 21_028-LTS-DR-ZZ-LS-L00-170002-L-A",null,"No",{"v":1,"d":"1 "},null,{"$f":"ROUND(F1073*G1073,2)","v":{"v":0,"d":"0.00"}}]
[]
[" A",null,"Custom made aluminium sliding door type D_AD104c size 2 000 x 2 100mm high hung to and including powder coated aluminium door frame, additional studding, trimming, concealed edges etc. complete in its entirety as per the architect's drawing: 21_028-LTS-DR-ZZ-LS-L00-110002-L-A and door schedule 2022_CSIR_A.10.23 and 21_028-LTS-DR-ZZ-LS-L00-170002-L-A",null,"No",{"v":3,"d":"3 "},null,{"$f":"ROUND(F1075*G1075,2)","v":{"v":0,"d":"0.00"}}]
[]
[null,null,"Purpose made powder coated aluminium window glazed with 6.8mm Laminated Annealed safety glass, including ironmongery, sealing and plugged to brickwork or concrete or partitions all in accordance with specifications and architect's drawings"]
[]
[null,null,"Aluminium window all complete as per Architect's drawings: 21_028-LTS-DR-ZZ-LS-L00-110001-L-A, 21_028-LTS-DR-ZZ-LS-L00-110002-L-A and schedule 21_028-LTS-DR-ZZ-LS-L00-170002-L-A"]
[]
[" B",null,"Custom made aluminium window type W_AF131a size 1 200 x 900mm high, complete in its entirety as per the architect's drawing: 21_028-LTS-DR-ZZ-LS-L00-110002-L-A and window schedule 2022_CSIR_A.10.31",null,"No",{"v":7,"d":"7 "},null,{"$f":"ROUND(F1081*G1081,2)","v":{"v":0,"d":"0.00"}}]
[]
[" C",null,"Custom made aluminium window type IS_T01a size 1 950 x 900mm high, complete in its entirety as per the architect's drawing: 21_028-LTS-DR-ZZ-LS-L00-110002-L-A and window schedule 2022_CSIR_A.10.30",null,"No",{"v":1,"d":"1 "},null,{"$f":"ROUND(F1083*G1083,2)","v":{"v":0,"d":"0.00"}}]
[]
[null,null,"STEEL ROLLER SHUTTERS, ETC"]
[]
[null,null,"Purpose made external \"chain operated\" powdercoated (colour: \"TBC\") (to approved sample) roller shutter door with heavy gauge slide guides to suit roller shutter door, fixed complete in its entirety to brickwork, concrete or steel frame, all in accordance with specifications and architect's drawings"]
[]
[" D",null,"Chain operated roller shutter door Type D_RD195a size 1 800 x 2 100mm high, complete in its entirety as per the architect's drawing: 21_028-LTS-DR-ZZ-LS-L00-110002-L-A and door schedule 2022_CSIR_A.10.25",null,"No",{"v":3,"d":"3 "},null,{"$f":"ROUND(F1089*G1089,2)","v":{"v":0,"d":"0.00"}}]
[]
[null,null,"BILL NO. 11"]
[]
[null,null,"PLASTERING"]
[]
[null,null,"Note: Tenderers are reminded that common labours such as slightly rounded angles, fair edge, drips and arises, etc. are deemed to be included in the description of the plaster. Special prescribed labours are measured in accordance with the Standard System"]
[]
[null,null,"SUPPLEMENTARY PREAMBLES"]
[]
[null,null,"Finish"]
[]
[null,null,"Internal plaster shall be finished with a steel trowel and external plaster with a wooden float"]
[]
[null,null,"SCREEDS"]
[]
[null,null,"Screeds on concrete"]
[]
[" A",null,"30mm Thick on floors and landings",null,"m²",{"v":98,"d":"98 "},null,{"$f":"ROUND(F1107*G1107,2)","v":{"v":0,"d":"0.00"}}]
[]
[null,null,"\"FloorworX Pavelite\" screed or similar approved"]
[]
[" B",null,"4mm Thick on floors and landings",null,"m²",{"v":486,"d":"486 "},null,{"$f":"ROUND(F1111*G1111,2)","v":{"v":0,"d":"0.00"}}]
[]
[null,null,"INTERNAL PLASTER"]
[]
[null,null,"Cement plaster on brickwork"]
[]
[" C",null,"On walls",null,"m²",{"v":372,"d":"372 "},null,{"$f":"ROUND(F1117*G1117,2)","v":{"v":0,"d":"0.00"}}]
[]
[" D",null,"On narrow widths",null,"m²",{"v":18,"d":"18 "},null,{"$f":"ROUND(F1119*G1119,2)","v":{"v":0,"d":"0.00"}}]
[]
[null,null,"EXTERNAL PLASTER"]
[]
[null,null,"Cement plaster on brickwork"]
[]
[" E",null,"On narrow widths",null,"m²",{"v":5,"d":"5 "},null,{"$f":"ROUND(F1125*G1125,2)","v":{"v":0,"d":"0.00"}}]
[]
[null,null,"BILL NO. 12"]
[]
[null,null,"TILING"]
[]
[null,null,"NOTE: \tTenderers are advised to study the Model \tPreambles for Trades before pricing this bill."]
[]
[null,null,"SUPPLEMENTARY PREAMBLES"]
[]
[null,null,"Descriptions"]
[]
[null,null,"Unless described as \"fixed with adhesive to plaster (plaster elsewhere measured)\" descriptions of tiling on brick or concrete walls, columns, etc shall be deemed to include 1:4 cement plaster backing and descriptions of tiling on concrete floors, etc shall be deemed to include 1:3 plaster bedding.  All floor tiles are to be completely covered/backed with adhesive in order to ensure no hollow areas behind tiles."]
[]
[null,null,"Repairs"]
[]
[null,null,"Repairs to damaged areas in the existing concrete surface bed or slab is to be done using \"TAL Superscreed\""]
[]
[null,null,"Sealants, etc"]
[]
[null,null,"Tenders should include in their price for silicone sealant between all skirting tiles and floor tiles."]
[]
[null,null,"Movement joints"]
[]
[null,null,"Tenders are to include in their price for soft joint and sealants in panels of 3 000 x 3 000mm maximum to floor tiling or in accordance with the manufacturer's requirements. Joints to be sealed with \"Sikaflex Pro 2HP\" after priming the joint with  \"Sika Primer\". Where practical the bulk of the depth of the joint can be filled with 6mm diameter closed cell polyethylene chord."]
[]
[null,null,"Grouting joints"]
[]
[null,null,"Joints to be 3 to 5mm maximum width"]
[]
[null,null,"WALL TILING"]
[]
[null,null,"Ceramic tiles fixed with \"Gold Star 6\" adhesive to walls flush pointed with \"TAL Wall & Floor\" grouting"]
[]
[" A",null,"On walls in splashbacks",null,"m²",{"v":1,"d":"1 "},null,{"$f":"ROUND(F1159*G1159,2)","v":{"v":0,"d":"0.00"}}]
[]
[null,null,"SUNDRIES"]
[]
[null,null,"\"Kirk Marketing M-Trim\" aluminium trims or similar approved"]
[]
[" B",null,"Straight edge trim brush finish (ASE100)",null,"m",{"v":3,"d":"3 "},null,{"$f":"ROUND(F1165*G1165,2)","v":{"v":0,"d":"0.00"}}]
[]
[null,null,"BILL NO. 13"]
[]
[null,null,"PLUMBING AND DRAINAGE"]
[]
[null,null,"NOTE:\tTenderers are advised to study the Model Preambles for Trades before pricing this bill"]
[]
[null,null,"SUPPLEMENTARY PREAMBLES"]
[]
[null,null,"uPVC pipes and fittings"]
[]
[null,null,"Sewer and drainage pipes and fittings shall be jointed and sealed with butyl rubber rings Soil, waste and vent pipes and fittings shall be solvent weld jointed"]
[]
[null,null,"uPVC pressure pipes and fittings"]
[]
[null,null,"Pipes for water supply shall be of the class stated Pipes of 40mm diameter and smaller shall be plain ended with solvent welded uPVC loose sockets and fittings Pipes of 50mm diameter and greater shall have sockets and spigots with push-in type integral rubber ring joints.  Bends shall be uPVC and all other fittings shall be cast iron, all with similar push-in type joints"]
[]
[null,null,"Fixing of pipes"]
[]
[null,null,"Unless specifically otherwise stated, descriptions of pipes shall be deemed to include fixing to walls etc, casting in, building in or suspending not exceeding 1m below suspension level"]
[]
[null,null,"Reducing fittings"]
[]
[null,null,"Where fittings have reducing ends or branches they are described as \"reducing\".  In the case of pipes with diameters not exceeding 60mm only the largest end or branch size is given. Should the contractor wish to use other fittings and bushes or reducers he may do so on the understanding that no claim in this regard will be entertained.  In the case of pipes with diameters exceeding 60mm all sizes are given and no claim for extra bushes, reducers, etc will be entertained"]
[]
[null,null,"Wire gratings"]
[]
[null,null,"Descriptions of gutter outlets etc shall be deemed to include wire balloon gratings"]
[]
[null,null,"Excavations"]
[]
[null,null,"No claim for rock excavation will be entertained unless the contractor has timeously notified the quantity surveyor thereof prior to backfilling \"Soft rock\" and \"hard rock\" shall be as defined in \"Earthworks\""]
[]
[null,null,"Laying, backfilling, bedding, etc of pipes"]
[]
[null,null,"Pipes shall be laid and bedded and trenches shall be carefully backfilled in accordance with manufacturers' instructionsWhere no manufacturers' instructions exist pipes shall be laid in accordance with clauses 5.1 and 5.2 of each of the following: SABS 1200 L : Medium-pressure pipelines LD : Sewers LE : Stormwater drainage Pipe trenches etc shall be backfilled in accordance with clauses 3, 5.5, 5.6, 5.7 and 7 of SABS 1200 DB : Earthworks (Pipe trenches) Pipes shall be bedded in accordance with clauses 3.1 to 3.4.1, 5.1 to 5.3 and 7 of SABS 1200 LB : Bedding (Pipes). Unless otherwise described bedding of rigid pipes shall be class B bedding"]
[]
[null,null,"Flush pans"]
[]
[null,null,"Flush pans shall have straight or side outlets and \"P\" or \"S\" traps as necessary"]
[]
[null,null,"Stainless steel basins, sinks, wash troughs, urinals, etc"]
[]
[null,null,"Units shall have standard aprons on all exposed edges and tiling keys against walls where applicable"]
[]
[null,null,"Waste unions"]
[]
[null,null,"Descriptions of waste unions shall be deemed to include rubber or vulcanite plugs and chains fixed to fittings"]
[]
[null,null,"Sealing"]
[]
[null,null,"Prices for sanitary fittings shall include for sealing against walls with silicone sealing compound.  This shall apply to all sanitary fittings."]
[]
[null,null,"Valves, etc"]
[]
[null,null,"Descriptions of valves etc shall be deemed to include flanged or screwed connections to piping, reducers, supports etc"]
[]
[null,null,"Painting"]
[]
[null,null,"The Principal Building Contractor will be responsible for painting all pipe work and painting of the pipe work must be included in the tendered rates for the hot and cold water supply"]
[]
[null,null,"Pricing"]
[]
[null,null,"The tenderer must price each item in this section individually and no changes made by the tenderer shall be recognised  Where inclusive items are measured and priced, the contractor must on request, supply full details of the components and prices making up the inclusive items. If the contractor does not supply such details and prices within fourteen days after having been requested to do so, the Quantity Surveyor will determine such at his own discretion"]
[]
[null,null,"PREAMBLES"]
[]
[null,null,"For Preambles see 'Standard Preambles to Trades'In addition to the 'Standard Preambles to Trades' the following SABS codes are applicable:PIPE THREADS\t\t\tSABS 21GALVANISING \t\t\tSABS 763WROUGHT STEEL SCREWEDFLANGES BS 10/ \t\tSABS 1123ERW PIPING \t\t\tSABS 719DENSOWRAP \t\t\tSABS 1117NON-RISING SPINDLE VALVES \tSABS 665WATER TANKS \t\t\tSABS/CKS 114NOTE:Unless otherwise stated all excavation depths are related to finished levelsNote that all geysers are to be either hung from the roof structure or located on bearing walls, etc and that all hangers, etc must be included to the approval of the engineer. All such bearers, bolts, etc must be allowed for in this tender under the respective item by the tenderer and no claims in this regard will be entertained. Descriptions of pipes in ground are deemed to include for excavation, bedding and backfilling as per the Engineer's details. The stated depths refer to the measurement from finished ground level to invert level of the pipes. No distinction has been made between pipes been chased in, built in, or to be suspended from roof trusses, etc. The tenders must study the drawings and familiarise themselves with the extent of the works and do the necessary allowances in the tender as no claims in this regards will be entertained."]
[]
[null,null,"RAINWATER DISPOSAL"]
[]
[null,null,"\"Watertite\" seamless aluminium Ogee gutters with powder coated finish"]
[]
[" A",null,"150 x 125mm OGEE profile seamless gutters",null,"m",{"v":7,"d":"7 "},null,{"$f":"ROUND(F1239*G1239,2)","v":{"v":0,"d":"0.00"}}]
[]
[" B",null,"Extra over 150 x 125mm eaves gutter for stopped end",null,"No",{"v":6,"d":"6 "},null,{"$f":"ROUND(F1241*G1241,2)","v":{"v":0,"d":"0.00"}}]
[]
[" C",null,"Extra over 150 x 125mm eaves gutter for outlet for 110mm square profile pipe",null,"No",{"v":6,"d":"6 "},null,{"$f":"ROUND(F1243*G1243,2)","v":{"v":0,"d":"0.00"}}]
[]
[null,null,"Aluminium downpipes"]
[]
[" D",null,"180mm Downpipe fixed complete in its entirety",null,"m",{"v":6,"d":"6 "},null,{"$f":"ROUND(F1247*G1247,2)","v":{"v":0,"d":"0.00"}}]
[]
[" E",null,"Extra over downpipe for shoe",null,"No",{"v":3,"d":"3 "},null,{"$f":"ROUND(F1249*G1249,2)","v":{"v":0,"d":"0.00"}}]
[]
[" F",null,"Extra over downpipe for bend",null,"No",{"v":3,"d":"3 "},null,{"$f":"ROUND(F1251*G1251,2)","v":{"v":0,"d":"0.00"}}]
[]
[" G",null,"Extra over downpipe for swan-neck",null,"No",{"v":3,"d":"3 "},null,{"$f":"ROUND(F1253*G1253,2)","v":{"v":0,"d":"0.00"}}]
[]
[null,null,"SANITARY FITTINGS"]
[]
[null,null,"Hand wash basin"]
[]
[" H",null,"\"Rossco\" (ROS-SHSQ627) white ceramic wall hung handwash basin size 450 x 450mm with waste & taphole, no overflow, installed with bottle trap, including 2 x 1/4 turn isolation valve on hot and cold water supply line, complete as per architect's drawings: 21_028-LTS-DR-ZZ-LS-L00-110001-L-A, 21_028-LTS-DR-ZZ-LS-L00-110002-L-A and schedule 21_028-LTS-DR-ZZ-LS-L00-170001-L-A and laboratory fit out specification document",null,"No",{"v":7,"d":"7 "},null,{"$f":"ROUND(F1259*G1259,2)","v":{"v":0,"d":"0.00"}}]
[]
[null,null,"Stainless steel sinks"]
[]
[" J",null,"\"Kwikot Arden Series\" stainless steel single bowl sink (Type SSO-1200-SE) with 38mm waste, complete as per drawing : 2022_CSIR_A.03.1.2 and Architectural Specification Document",null,"No",{"v":1,"d":"1 "},null,{"$f":"ROUND(F1263*G1263,2)","v":{"v":0,"d":"0.00"}}]
[]
[null,null,"Ceramic sinks"]
[]
[" A",null,"\"VAAL'' Vitreous china rectangular laboratory drop-on sink (code: 236100) size 600 x 400 x 200mm without overflow and a centre end waste outlet, fixed underneath of countertop using two adjustable underslung brackets (code 8109Z0) including 38mm Acid resistant waste (code 8791Z0), complete as per architect's drawings: 21_028-LTS-DR-ZZ-LS-L00-110001-L-A, 21_028-LTS-DR-ZZ-LS-L00-110002-L-A and schedule 21_028-LTS-DR-ZZ-LS-L00-170001-L-A and laboratory fit out specification document",null,"No",{"v":2,"d":"2 "},null,{"$f":"ROUND(F1267*G1267,2)","v":{"v":0,"d":"0.00"}}]
[]
[null,null,"Epoxy Resin Laboratory Sink"]
[]
[" B",null,"\"Simmons\" Single bowl drop-on single drainer epoxy resin sink (code: SEL16-DO) size 600 x 450 x 300mm deep with and including waste, including 2 x 1/4 turn isolation valve on hot and cold water supply line, complete as per architect's drawings: 21_028-LTS-DR-ZZ-LS-L00-110001-L-A, 21_028-LTS-DR-ZZ-LS-L00-110002-L-A and schedule 21_028-LTS-DR-ZZ-LS-L00-170001-L-A and laboratory fit out specification document",null,"No",{"v":1,"d":"1 "},null,{"$f":"ROUND(F1271*G1271,2)","v":{"v":0,"d":"0.00"}}]
[]
[null,null,"Double Bowl Stainless Steel Pot Sink"]
[]
[" C",null,"\"Chilli-B\" Double bowl pot sink (code: P2-1850-PB/ 2620482) grade 304 stainless steel 1,2mm thick with a 300mm high integral splash back and 50 x 10mm turn down with a beaded edge on the remaining sides, overall size 900 x 1850 x 650mm including 40mm waste outlet and stainless steel slatted under shelf and including 2 x 1/4 turn isolation valve per tap on hot and cold water supply line, complete as per architect's drawings: 21_028-LTS-DR-ZZ-LS-L00-110001-L-A, 21_028-LTS-DR-ZZ-LS-L00-110002-L-A and schedule 21_028-LTS-DR-ZZ-LS-L00-170001-L-A and laboratory fit out specification document",null,"No",{"v":1,"d":"1 "},null,{"$f":"ROUND(F1275*G1275,2)","v":{"v":0,"d":"0.00"}}]
[]
[null,null,"\"Broen Lab\" handheld wall mounted double eye/face shower with bowl"]
[]
[" A",null,"\"Broen-Lab\" handheld wall mounted double eye/face shower with bowl, bowl in brass and stainless steel 20mm female inlet at top of shower, eye wash bowl minimum working pressure 1.5 bar including a self draining shower head and bowl with integrated outlet including 1 x 1/4 turn isolation valve on cold water supply line, complete as per architect's drawings: 21_028-LTS-DR-ZZ-LS-L00-110001-L-A, 21_028-LTS-DR-ZZ-LS-L00-110002-L-A and schedule 21_028-LTS-DR-ZZ-LS-L00-170001-L-A and laboratory fit out specification document",null,"No",{"v":2,"d":"2 "},null,{"$f":"ROUND(F1279*G1279,2)","v":{"v":0,"d":"0.00"}}]
[]
[null,null,"\"Spilldoctor\" wall mounted eye/face shower with bowl"]
[]
[" B",null,"\"Spilldoctor\" wall mounted eye/face shower with bowl, bowl in stainless steel including two high-flow aerated water sprays at low pressure with automatic opening anti-dust cover, male inlet ISO 228 G1/2\", eye wash bowl Minimum working pressure: 1.5 bar, 1 x 1/4 turn isolation valve on cold water supply line, complete as per architect's drawings: 21_028-LTS-DR-ZZ-LS-L00-110001-L-A, 21_028-LTS-DR-ZZ-LS-L00-110002-L-A and schedule 21_028-LTS-DR-ZZ-LS-L00-170001-L-A and laboratory fit out specification document",null,"No",{"v":3,"d":"3 "},null,{"$f":"ROUND(F1283*G1283,2)","v":{"v":0,"d":"0.00"}}]
[]
[null,null,"\"Carlos Arboles\" body and eye shower"]
[]
[" C",null,"\"Carlos Arboles\" eye/face shower station, eyewash assembly and bowl in ABS plastic, galvanised steel piping and brass fittings including two high-flow aerated water sprays at low pressure with automatic opening anti-dust cover, eye wash bowl Minimum working pressure: 1.5 bar, 1 x 1/4 turn isolation valve on cold water supply line, complete as per architect's drawings: 21_028-LTS-DR-ZZ-LS-L00-110001-L-A, 21_028-LTS-DR-ZZ-LS-L00-110002-L-A and schedule 21_028-LTS-DR-ZZ-LS-L00-170001-L-A and laboratory fit out specification document",null,"No",{"v":2,"d":"2 "},null,{"$f":"ROUND(F1287*G1287,2)","v":{"v":0,"d":"0.00"}}]
[]
[null,null,"Floor Drains and Traps"]
[]
[" A",null,"\"ACO Floor Drain & trap\" (code: 405143) 50mm diameter floor drain with a flow rate of 1.2 litres per second, complete as per architect's drawings: 21_028-LTS-DR-ZZ-LS-L00-110001-L-A, 21_028-LTS-DR-ZZ-LS-L00-110002-L-A and schedule 21_028-LTS-DR-ZZ-LS-L00-170001-L-A and laboratory fit out specification document",null,"No",{"v":7,"d":"7 "},null,{"$f":"ROUND(F1291*G1291,2)","v":{"v":0,"d":"0.00"}}]
[]
[null,null,"BATHROOM FITTINGS"]
[]
[null,null,"\"Chilli-B\" or similar approved"]
[]
[" B",null,"\"Chilli-B\" Stainless steel wall mounted elbow action soap dispenser (code: CL0075), complete as per architect's drawings: 21_028-LTS-DR-ZZ-LS-L00-110001-L-A, 21_028-LTS-DR-ZZ-LS-L00-110002-L-A and schedule 21_028-LTS-DR-ZZ-LS-L00-170001-L-A and laboratory fit out specification document",null,"No",{"v":7,"d":"7 "},null,{"$f":"ROUND(F1297*G1297,2)","v":{"v":0,"d":"0.00"}}]
[]
[" C",null,"\"Chilli-B\" Satin grey plastic sanitary bin size 463 x 140 x 480mm high (code: FR-RODX605), complete as per architect's drawings: 21_028-LTS-DR-ZZ-LS-L00-110001-L-A, 21_028-LTS-DR-ZZ-LS-L00-110002-L-A and schedule 21_028-LTS-DR-ZZ-LS-L00-170001-L-A and laboratory fit out specification document",null,"No",{"v":7,"d":"7 "},null,{"$f":"ROUND(F1299*G1299,2)","v":{"v":0,"d":"0.00"}}]
[]
[" D",null,"\"Chilli-B\" Hand towel (code: F-STRX600), complete as per architect's drawings: 21_028-LTS-DR-ZZ-LS-L00-110001-L-A, 21_028-LTS-DR-ZZ-LS-L00-110002-L-A and schedule 21_028-LTS-DR-ZZ-LS-L00-170001-L-A and laboratory fit out specification document",null,"No",{"v":7,"d":"7 "},null,{"$f":"ROUND(F1301*G1301,2)","v":{"v":0,"d":"0.00"}}]
[]
[null,null,"WASTE UNIONS ETC"]
[]
[null,null,"\"KWIKOT\" or similar approved waste unions"]
[]
[" A",null,"40mm \"Kwikot\" (Code : SSKIT-OCTI-1) or similar approved single bowl waste outlet, backnut, plug, chain and stay, complete as per drawing : 2022_CSIR_A.03.1.2 and Architectural Specification Document",null,"No",{"v":1,"d":"1 "},null,{"$f":"ROUND(F1307*G1307,2)","v":{"v":0,"d":"0.00"}}]
[]
[null,null,"\"Cobra\" or similar approved waste unions"]
[]
[" B",null,"40mm \"Cobra\" (Code : 310-40) or similar approved Chromium-plated copper waste outlet, backnut, plug, chain and stay, complete as per architect's drawings: 21_028-LTS-DR-ZZ-LS-L00-110001-L-A, 21_028-LTS-DR-ZZ-LS-L00-110002-L-A and schedule 21_028-LTS-DR-ZZ-LS-L00-170001-L-A and laboratory fit out specification document",null,"No",{"v":11,"d":"11 "},null,{"$f":"ROUND(F1311*G1311,2)","v":{"v":0,"d":"0.00"}}]
[]
[null,null,"TRAPS ETC"]
[]
[null,null,"Waste traps, etc, jointed to pipes as described including necessary adaptors, et"]
[]
[" C",null,"\"Cobra\" Bottle Trap (Code: 365/50P) (Type SF13) or similar approved including all spares tail pipe, cap nut, wall flange, etc,  complete as per drawing : 2022_CSIR_A.03.1.2 and Architectural Specification Document",null,"No",{"v":1,"d":"1 "},null,{"$f":"ROUND(F1317*G1317,2)","v":{"v":0,"d":"0.00"}}]
[]
[" D",null,"\"Broen-Lab\" Black Polypropylene bottle trap (Code: 97B0040) or similar approved including all spares tail pipe, cap nut, wall flange, etc, complete as per architect's drawings: 21_028-LTS-DR-ZZ-LS-L00-110001-L-A, 21_028-LTS-DR-ZZ-LS-L00-110002-L-A and schedule 21_028-LTS-DR-ZZ-LS-L00-170001-L-A and laboratory fit out specification document",null,"No",{"v":11,"d":"11 "},null,{"$f":"ROUND(F1319*G1319,2)","v":{"v":0,"d":"0.00"}}]
[]
[null,null,"TAPS, VALVES, ETC"]
[]
[" E",null,"15mm Angle valves on wall flanged with 350mm flexible hose connector",null,"No",{"v":12,"d":"12 "},null,{"$f":"ROUND(F1323*G1323,2)","v":{"v":0,"d":"0.00"}}]
[]
[null,null,"\"FRANKE\" or similar approved"]
[]
[" A",null,"\"Franke Projectline Swivel Chrome\" sink mixer (code: 115.0193.184) ceramic disk cartridge with anti-scold,  complete as per drawing : 2022_CSIR_A.03.1.2 and Architectural Specification Document",null,"No",{"v":1,"d":"1 "},null,{"$f":"ROUND(F1327*G1327,2)","v":{"v":0,"d":"0.00"}}]
[]
[null,null,"\"Cobra\" or similar approved"]
[]
[" B",null,"\"Cobra Cobra Ledim\" Stop tap with sliding wall flange. 1/2BSP female iron connection ends (code: LO-228-15/N), ,  complete as per drawing : 2022_CSIR_A.03.1.2 and Architectural Specification Document",null,"No",{"v":1,"d":"1 "},null,{"$f":"ROUND(F1331*G1331,2)","v":{"v":0,"d":"0.00"}}]
[]
[" C",null,"\"Cobra\" wall mounted elbow action medical mixer (code: FEAWALEA-0GT0050 (6002194030348)), with progressive temperature control and integral inlet regulating valves, adjustable inlet connections with wall flanges, under slung aerated cast swivel outlet 1/2\"€\u009dBSP male iron connection ends, complete as per architect's drawings: 21_028-LTS-DR-ZZ-LS-L00-110001-L-A, 21_028-LTS-DR-ZZ-LS-L00-110002-L-A and schedule 21_028-LTS-DR-ZZ-LS-L00-170001-L-A and laboratory fit out specification document",null,"No",{"v":4,"d":"4 "},null,{"$f":"ROUND(F1333*G1333,2)","v":{"v":0,"d":"0.00"}}]
[]
[null,null,"\"GROHE\" or similar approved"]
[]
[" D",null,"\"GROHE Euroeco Special\" Single lever safety basin mixer (Code: 32 789 000) mounted onto basin,  complete as per architect's drawings: 21_028-LTS-DR-ZZ-LS-L00-110001-L-A, 21_028-LTS-DR-ZZ-LS-L00-110002-L-A and schedule 21_028-LTS-DR-ZZ-LS-L00-170001-L-A and laboratory fit out specification document",null,"No",{"v":7,"d":"7 "},null,{"$f":"ROUND(F1337*G1337,2)","v":{"v":0,"d":"0.00"}}]
[]
[null,null,"\"Carlos Arboles\" or similar approved"]
[]
[" A",null,"\"Carlos Arboles\" Mixer with Wrist Action Levers (code: 6157), cold and hot water mixer including wrist action lever, bench mounted, 150mm centres, removable nozzle, swivel swanneck, complete as per architect's drawings: 21_028-LTS-DR-ZZ-LS-L00-110001-L-A, 21_028-LTS-DR-ZZ-LS-L00-110002-L-A and schedule 21_028-LTS-DR-ZZ-LS-L00-170001-L-A and laboratory fit out specification document",null,"No",{"v":2,"d":"2 "},null,{"$f":"ROUND(F1341*G1341,2)","v":{"v":0,"d":"0.00"}}]
[]
[null,null,"ELECTRIC WATER HEATER"]
[]
[null,null,"\"Zip HydroBoil\" or similar approved Boiling water dispenser"]
[]
[" B",null,"\"Zip HydroBoil\" or similar approved Boiling water dispenser (HydroBoil) with 5L water capacity, size 318 x 150 x 460mm high, White Epoxy Powder Coated outer case (code: 2610008) plugged to wall over counter with and including sink drip tray, with and including two-way tap and twin-chamber technology, complete as per drawing : 2022_CSIR_A.03.1.2 and Architectural Specification Document",null,"No",{"v":1,"d":"1 "},null,{"$f":"ROUND(F1347*G1347,2)","v":{"v":0,"d":"0.00"}}]
[]
[null,null,"BILL NO. 14"]
[]
[null,null,"PAINTWORK"]
[]
[null,null,"NOTE:\tTenderers are advised to study the Model Preambles for Trades before pricing this bill"]
[]
[null,null,"SUPPLEMENTARY PREAMBLES"]
[]
[null,null,"All colours to be selected by the architect"]
[]
[null,null,"Only approved brands of paint shall be permitted"]
[]
[null,null,"All painting measured generally will be in colours with a value of more than 7 on the Munsell system in accordance with the relevant SABS specification. Any painting in colours with a value of 7 or less on the Munsell system shall be given as paintwork in darker colours"]
[]
[null,null,"Previously painted surfaces shall be thoroughly washed down and allowed to dry completely before any paint is applied. Blistered or peeling paint Shall be completely removed and cracks shall be opened, filled with a suitable filler and finished smooth"]
[]
[null,null,"PAINTWORK TO PREVIOUSLY PAINTED WORK"]
[]
[null,null,"ON FLOATED PLASTER, ETC"]
[]
[null,null,"Prepare, stop and apply one coat plaster primer (UC 56) and two coats \"Plascon Wall & All\" or similar, to be approved paint on surfaces in good condition, complete as per Architectural Specification Document"]
[]
[" A",null,"On internal walls",null,"m²",{"v":1013,"d":"1,013 "},null,{"$f":"ROUND(F1371*G1371,2)","v":{"v":0,"d":"0.00"}}]
[]
[null,null,"ON PLASTERBOARD"]
[]
[null,null,"Prepare, stop and apply one coat plaster primer (UC 56) and two coats \"Plascon Wall & All\" or similar, to be approved paint on surfaces in good condition, complete as per Architectural Specification Document"]
[]
[" A",null,"On gypsum board partitioning",null,"m²",{"v":333,"d":"333 "},null,{"$f":"ROUND(F1377*G1377,2)","v":{"v":0,"d":"0.00"}}]
[]
[null,null,"ON METAL"]
[]
[null,null,"One coat Metal Primer (UC 501) and two coats 'Plascon Super Universal Enamel\"€™ or similar approved, in good condition all according to manufacturers specifications, complete as per Architectural Specification Document"]
[]
[" B",null,"On windows",null,"m²",{"v":59,"d":"59 "},null,{"$f":"ROUND(F1383*G1383,2)","v":{"v":0,"d":"0.00"}}]
[]
[" C",null,"On balustrades",null,"m²",{"v":34,"d":"34 "},null,{"$f":"ROUND(F1385*G1385,2)","v":{"v":0,"d":"0.00"}}]
[]
[null,null,"PAINTWORK ON NEW WORK"]
[]
[null,null,"ON FLOATED PLASTER"]
[]
[null,null,"Prepare and apply one coat plaster primer (UC 56) and two coats \"Plascon Wall & All\" or similar, to be approved paint on surfaces in good condition, complete as per Architectural Specification Document"]
[]
[" D",null,"On internal walls",null,"m²",{"v":328,"d":"328 "},null,{"$f":"ROUND(F1393*G1393,2)","v":{"v":0,"d":"0.00"}}]
[]
[" E",null,"On external walls",null,"m²",{"v":5,"d":"5 "},null,{"$f":"ROUND(F1395*G1395,2)","v":{"v":0,"d":"0.00"}}]
[]
[null,null,"ON PLASTERBOARD"]
[]
[null,null,"Prepare and apply one coat plaster primer (UC 56) and two coats \"Plascon Wall & All\" or similar, to be approved paint on surfaces in good condition, complete as per Architectural Specification Document"]
[]
[" F",null,"On gypsum board ceilings",null,"m²",{"v":64,"d":"64 "},null,{"$f":"ROUND(F1401*G1401,2)","v":{"v":0,"d":"0.00"}}]
[]
[null,null,"Prepare, stop and apply one coat plaster primer (UC 56) and two coats \"Plascon Wall & All\" or similar, to be approved paint on surfaces in good condition, complete as per Architectural Specification Document"]
[]
[" A",null,"On gypsum board partitioning",null,"m²",{"v":579,"d":"579 "},null,{"$f":"ROUND(F1405*G1405,2)","v":{"v":0,"d":"0.00"}}]
[]
[null,null,"ON WOOD"]
[]
[null,null,"One coat wood primer (UC 2) and one coat universal undercoat or similar approved and two coats \"Plascon\" Velvaglo paint or similar approved as per manufacturer's specification, complete as per Architectural Specification Document"]
[]
[" B",null,"On backs of frames, skirtings, etc not exceeding 300mm wide",null,"m",{"v":98,"d":"98 "},null,{"$f":"ROUND(F1411*G1411,2)","v":{"v":0,"d":"0.00"}}]
[]
[" C",null,"Roof timbers",null,"m²",{"v":55,"d":"55 "},null,{"$f":"ROUND(F1413*G1413,2)","v":{"v":0,"d":"0.00"}}]
[]
[null,null,"BILL NO. 15"]
[]
[null,null,"EXTERNAL WORK"]
[]
[null,null,"NOTE:\tTenderers are advised to study the Model Preambles for Trades before pricing this bill"]
[]
[null,null,"NOTE:  Tenderers are advised to study the Model Preambles for Trades before pricing this bill"]
[]
[null,null,"SUPPLEMENTARY PREAMBLES"]
[]
[null,null,"Nature of the ground"]
[]
[null,null,"The Tenderer shall acquaint himself by personal examination of the nature of the ground.  Descriptions of excavations shall be deemed to include all ground conditions classifiable as \"earth\" and where conditions of a more difficult character are indicated these are separately measured"]
[]
[null,null,"Carting away of excavated material"]
[]
[null,null,"Descriptions of carting away of excavated material shall be deemed to include loading excavated material onto trucks directly from the excavations or alternatively, from stock piles situated on the building site"]
[]
[null,null,"SUPPLEMENTARY PREAMBLES"]
[]
[null,null,"Cost of tests"]
[]
[null,null,"The costs of making, storing and testing of concrete test cubes as required under Clause 7 \"Tests\" of SABS 1200 G shall include the cost of providing cube moulds necessary for the purpose, for testing costs and for submitting reports on the tests to the Architect.  The testing shall be undertaken by an independent firm or institution nominated by the Contractor to the approval of the Architect  (Test cubes are measured separately)"]
[]
[null,null,"Formwork"]
[]
[null,null,"Descriptions of formwork shall be deemed to include use and waste only (except where described as \"left in\" or \"permanent\"), for fitting together in the required forms, wedging, plumbing and fixing to true angles and surfaces as necessary to ensure easy release during stripping and for reconditioning as necessary before re-use. The vertical strutting shall be carried down to such construction as is sufficiently strong to afford the required support without damage and shall remain in position until the newly constructed work is able to support itself"]
[]
[null,null,"Formwork to soffits of solid slabs, etc shall be deemed to be to slabs not exceeding 250mm thick unless otherwise described formwork has been measured to the sides of all reinforced concrete in foundations and will be remeasured according to actual usage.  However, formwork necessitated by irregularity or collapse of excavated faces will not be measured and the cost thereof shall be deemed to be included in the allowance for taking the risk of collapse of the sides of the excavations, provision for which is made in \"Earthworks\""]
[]
[null,null,"THE FOLLOWING TO BE EXECUTED IN AND AROUND EXISTING BUILDING"]
[]
[null,null,"EXCAVATIONS, ETC"]
[]
[null,null,"Excavation in earth not exceeding 2m deep"]
[]
[" A",null,"To reduce levels to final levels under floors, etc",null,"m³",{"v":29,"d":"29 "},null,{"$f":"ROUND(F1451*G1451,2)","v":{"v":0,"d":"0.00"}}]
[]
[" B",null,"Holes",null,"m³",{"v":7,"d":"7 "},null,{"$f":"ROUND(F1453*G1453,2)","v":{"v":0,"d":"0.00"}}]
[]
[null,null,"Prescribed density tests on filling"]
[]
[" C",null,"\"Modified AASHTO Density\" test",null,"No",{"v":6,"d":"6 "},null,{"$f":"ROUND(F1457*G1457,2)","v":{"v":0,"d":"0.00"}}]
[]
[null,null,"Extra over all excavations for carting away"]
[]
[" D",null,"Surplus material from excavations and/or stock piles on site to a dumping site to be located by the Contractor",null,"m³",{"v":7,"d":"7 "},null,{"$f":"ROUND(F1461*G1461,2)","v":{"v":0,"d":"0.00"}}]
[]
[null,null,"Risk of collapse of excavations"]
[]
[" E",null,"Sides of trench and hole excavations not exceeding 1.5m deep",null,"m²",{"v":29,"d":"29 "},null,{"$f":"ROUND(F1465*G1465,2)","v":{"v":0,"d":"0.00"}}]
[]
[null,null,"UNREINFORCED CONCRETE CAST AGAINST EXCAVATED"]
[]
[null,null,"15MPa/19mm concrete"]
[]
[" F",null,"Surface blinding under footings and bases",null,"m³",{"v":1,"d":"1 "},null,{"$f":"ROUND(F1471*G1471,2)","v":{"v":0,"d":"0.00"}}]
[]
[null,null,"REINFORCED CONCRETE"]
[]
[null,null,"30MPa/19mm concrete"]
[]
[" G",null,"Concrete Plinths",null,"m³",{"v":10,"d":"10 "},null,{"$f":"ROUND(F1477*G1477,2)","v":{"v":0,"d":"0.00"}}]
[]
[" H",null,"Bases",null,"m³",{"v":3,"d":"3 "},null,{"$f":"ROUND(F1479*G1479,2)","v":{"v":0,"d":"0.00"}}]
[]
[null,null,"TEST BLOCKS"]
[]
[null,null,"Test blocks"]
[]
[" A",null,"Making and testing set of three 150 x 150 x 150mm concrete strength test cubes",null,"No",{"v":17,"d":"17 "},null,{"$f":"ROUND(F1485*G1485,2)","v":{"v":0,"d":"0.00"}}]
[]
[null,null,"CONCRETE SUNDRIES"]
[]
[null,null,"Finishing top surfaces of concrete smooth with a power float"]
[]
[" B",null,"Surface beds, slabs, etc",null,"m²",{"v":98,"d":"98 "},null,{"$f":"ROUND(F1491*G1491,2)","v":{"v":0,"d":"0.00"}}]
[]
[null,null,"FORMWORK"]
[]
[null,null,"ROUGH FORMWORK (DEGREE OF ACCURACY II)"]
[]
[null,null,"Rough formwork to sides"]
[]
[" C",null,"Bases",null,"m²",{"v":13,"d":"13 "},null,{"$f":"ROUND(F1499*G1499,2)","v":{"v":0,"d":"0.00"}}]
[]
[" D",null,"Edges of surface bed panels, ramps, etc not exceeding 300mm high or wide",null,"m",{"v":82,"d":"82 "},null,{"$f":"ROUND(F1501*G1501,2)","v":{"v":0,"d":"0.00"}}]
[]
[null,null,"MOVEMENT JOINTS, ETC"]
[]
[null,null,"Isolation joints with \"Jointex\" between vertical concrete surfaces"]
[]
[" E",null,"10mm Joints not exceeding 300mm high",null,"m",{"v":22,"d":"22 "},null,{"$f":"ROUND(F1507*G1507,2)","v":{"v":0,"d":"0.00"}}]
[]
[null,null,"Saw cut joints"]
[]
[" F",null,"3 x 50mm Saw cut joints in top of concrete",null,"m",{"v":29,"d":"29 "},null,{"$f":"ROUND(F1511*G1511,2)","v":{"v":0,"d":"0.00"}}]
[]
[null,null,"Fabric reinforcement"]
[]
[" G",null,"Type 193 fabric reinforcement in concrete surface beds, slabs, etc",null,"m²",{"v":98,"d":"98 "},null,{"$f":"ROUND(F1515*G1515,2)","v":{"v":0,"d":"0.00"}}]
[]
[null,null,"FILLING, ETC"]
[]
[null,null,"Earth filling supplied by the contractor under pavings, premix roads, etc"]
[]
[" A",null,"Over site of G5 material  in natural gravel subbase in accordance with SABS 1200 DM compacted to 95% Mod AASHTO density",null,"m³",{"v":15,"d":"15 "},null,{"$f":"ROUND(F1521*G1521,2)","v":{"v":0,"d":"0.00"}}]
[]
[null,null,"Compaction of surfaces"]
[]
[" B",null,"Compaction of ground surface under pavings, etc including scarifying for a depth of 150mm, breaking down oversize material, adding suitable material where necessary and compacting to 93% Mod AASHTO density",null,"m²",{"v":98,"d":"98 "},null,{"$f":"ROUND(F1525*G1525,2)","v":{"v":0,"d":"0.00"}}]
[]
[null,null,"FENCING, ETC"]
[]
[null,null,"Galvanised security fence with bitumen dipped steel standards and bitumen-aluminium painted (two coats) steel pipe posts, stays, gates, etc including galvanised steel bolts, straining eye bolts, etc, site clearance and preparation of ground"]
[]
[" C",null,"Gate of 30mm diameter SHS framing, 1 250 x 2 100m high vertically with both stiles extended at top, the vertical section covered with GMS mesh insert, including hinges, heavy duty lockable barrel bolt and brass five-pin tumbler padlock, as per the architect's drawing: 21_028-LTS-DR-ZZ-LS-L00-190001-T-A and 21_028-LTS-DR-ZZ-LS-L00-190002-T-A and Laboratory Internal Architectural Specification Document",null,"No",{"v":4,"d":"4 "},null,{"$f":"ROUND(F1531*G1531,2)","v":{"v":0,"d":"0.00"}}]
[]
[" D",null,"50mm Diameter SHS post 2 100mm long, including fixing complete in its entirety to plinth, as per the architect's drawing: 21_028-LTS-DR-ZZ-LS-L00-190001-T-A and 21_028-LTS-DR-ZZ-LS-L00-190002-T-A and Laboratory Internal Architectural Specification Document",null,"No",{"v":8,"d":"8 "},null,{"$f":"ROUND(F1533*G1533,2)","v":{"v":0,"d":"0.00"}}]
[]
[null,null,"SUB SOIL DRAINAGE"]
[]
[null,null,"Waterproofed concrete and brick sump chamber including stepping irons, 600 x 900mm heavy duty cover and frame complete in its entirety"]
[]
[" A",null,"Excavate for and build sump chamber overall size 1 000 x 1 000 x 1 835mm, exceeding 1 000mm deep and not exceeding 2 000mm deep internally, including cast in-situ cover slab, brickwork, 150mm concrete base,  building pipes through sides, etc",null,"No",{"v":1,"d":"1 "},null,{"$f":"ROUND(F1539*G1539,2)","v":{"v":0,"d":"0.00"}}]
[]
[null,null,"BILL NO. 16"]
[]
[null,null,"BUDGETARY ALLOWANCES"]
[]
[null,null,"The following net sums are for work to be executed by the principal contractor and or specialists and or domestic sub-contractors and will be measured on completion and priced in terms of the contract as directed by the principal agent and deducted in whole or part if not required"]
[]
[null,null,"BOXING IN STEEL GANTRY BEAM"]
[]
[" A",null,"Allow the budgetary amount of R105,000.00 (One Hundred and Five Thousand  Rand and Zero Cents) NET for boxing in the steel gantry beam on the first floor at the Biopharmaceutical Facility to be used as directed by the Principal Agent and deducted in whole or in part if not required",null,"Item",{"v":1,"d":"1 "},{"v":105000,"d":"105,000.00"},{"$f":"ROUND(F1549*G1549,2)","v":{"v":105000,"d":"105,000.00"}}]
[]
[null,null,"BUILDERS WORK"]
[]
[" B",null,"Allow the budgetary amount of R50,000.00 (Fifty Thousand  Rand and Zero Cents) NET for unforeseen builders work and alterations for the Small Molecule Facility to be used as directed by the Principal Agent and deducted in whole or in part if not required",null,"Item",{"v":1,"d":"1 "},{"v":50000,"d":"50,000.00"},{"$f":"ROUND(F1553*G1553,2)","v":{"v":50000,"d":"50,000.00"}}]
[]
[" C",null,"Allow the budgetary amount of R50,000.00 (Fifty Thousand Rand) NET for unforeseen builders work and alterations for the Biopharmaceutical to be used as directed by the Principal Agent and deducted in whole or in part if not required",null,"Item",{"v":1,"d":"1 "},{"v":50000,"d":"50,000.00"},{"$f":"ROUND(F1555*G1555,2)","v":{"v":50000,"d":"50,000.00"}}]
[]
[null,null,"FIRE PAINT TO EXPOSED STRUCTURAL STEEL"]
[]
[" A",null,"Allow the budgetary amount of R150,000.00 (One Hundred and Fifty Thousand Rand and Zero Cents) NET for painting exposed structural steel members with intumescent paint at the Biopharmaceutical Facility, to be used as directed by the Principal Agent and deducted in whole or in part if not required",null,"Item",{"v":1,"d":"1 "},{"v":150000,"d":"150,000.00"},{"$f":"ROUND(F1559*G1559,2)","v":{"v":150000,"d":"150,000.00"}}]
[]
[null,null,"FIRE SEALANT"]
[]
[" B",null,"Allow the budgetary amount of R25,000.00 (Twenty Five Thousand Rand) NET for the fire sealant of existing laboratory facilities to be used as directed by the Principal Agent and deducted in whole or in part if not required",null,"Item",{"v":1,"d":"1 "},{"v":25000,"d":"25,000.00"},{"$f":"ROUND(F1563*G1563,2)","v":{"v":25000,"d":"25,000.00"}}]
[]
[null,null,"MAKING NEAT"]
[]
[" C",null,"Allow the budgetary amount of R15,000.00 (Fifteen Thousand Rand) NET for making neat to the administrative areas to be used as directed by the Principal Agent and deducted in whole or in part if not required",null,"Item",{"v":1,"d":"1 "},{"v":15000,"d":"15,000.00"},{"$f":"ROUND(F1567*G1567,2)","v":{"v":15000,"d":"15,000.00"}}]
[]
[null,null,"RE-LOCATE SOUND BARRIER"]
[]
[" D",null,"Allow the budgetary amount of R50,000.00 (Fifty Thousand Rand) NET for removing the sound barrier including structural steel work, concrete plinths, etc and installing paving with layerworks complete as directed by the Principal Agent and deducted in whole or in part if not required",null,"Item",{"v":1,"d":"1 "},{"v":50000,"d":"50,000.00"},{"$f":"ROUND(F1571*G1571,2)","v":{"v":50000,"d":"50,000.00"}}]
[]
[" E",null,"Allow the budgetary amount of R25,000.00 (Twenty Five Thousand Rand) NET for the lifting / cranage, moving & storing of big equipment during construction as directed by the Principal Agent and deducted in whole or in part if not required",null,"Item",{"v":1,"d":"1 "},{"v":25000,"d":"25,000.00"},{"$f":"ROUND(F1573*G1573,2)","v":{"v":25000,"d":"25,000.00"}}]
[]
[null,null,"SEALING EXISTING WINDOWS"]
[]
[" A",null,"Allow the budgetary amount of R50,000.00 (Fifty Thousand Rand) NET for the sealing of existing windows and doors to laboratory areas to be used as directed by the Principal Agent and deducted in whole or in part if not required",null,"Item",{"v":1,"d":"1 "},{"v":50000,"d":"50,000.00"},{"$f":"ROUND(F1577*G1577,2)","v":{"v":50000,"d":"50,000.00"}}]
[]
[null,null,"STEEL STEP"]
[]
[" B",null,"Allow the budgetary amount of R5,000.00 (Five Thousand Rand and Zero Cents) NET for a steel step on the first floor at the Biopharmaceutical Facility, to be used as directed by the Principal Agent and deducted in whole or in part if not required",null,"Item",{"v":1,"d":"1 "},{"v":5000,"d":"5,000.00"},{"$f":"ROUND(F1581*G1581,2)","v":{"v":5000,"d":"5,000.00"}}]
[]
[null,null,"SUMP PUMP"]
[]
[" C",null,"Allow the budgetary amount of R10,000.00 (Ten Thousand Rand and Zero Cents) NET for Sump Pump, to be used as directed by the Principal Agent and deducted in whole or in part if not required",null,"Item",{"v":1,"d":"1 "},{"v":10000,"d":"10,000.00"},{"$f":"ROUND(F1585*G1585,2)","v":{"v":10000,"d":"10,000.00"}}]
[]
[{"v":1,"d":"1 "},null,"Alterations",null,"Page",{"v":12,"d":"12 "},{"v":0,"d":"0.00"}]
[]
[{"v":2,"d":"2 "},null,"Concrete, Formwork and Reinforcement",null,"Page",{"v":16,"d":"16 "},{"v":0,"d":"0.00"}]
[]
[{"v":3,"d":"3 "},null,"Masonry",null,"Page",{"v":20,"d":"20 "},{"v":0,"d":"0.00"}]
[]
[{"v":4,"d":"4 "},null,"Waterproofing",null,"Page",{"v":23,"d":"23 "},{"v":0,"d":"0.00"}]
[]
[{"v":5,"d":"5 "},null,"Roof Covering",null,"Page",{"v":24,"d":"24 "},{"v":0,"d":"0.00"}]
[]
[{"v":6,"d":"6 "},null,"Carpentry and Joinery",null,"Page",{"v":39,"d":"39 "},{"v":0,"d":"0.00"}]
[]
[{"v":7,"d":"7 "},null,"Ceilings, partitions, etc",null,"Page",{"v":52,"d":"52 "},{"v":0,"d":"0.00"}]
[]
[{"v":8,"d":"8 "},null,"Floor coverings, etc",null,"Page",{"v":56,"d":"56 "},{"v":0,"d":"0.00"}]
[]
[{"v":9,"d":"9 "},null,"Structural Steelwork",null,"Page",{"v":62,"d":"62 "},{"v":0,"d":"0.00"}]
[]
[{"v":10,"d":"10 "},null,"Metalwork",null,"Page",{"v":67,"d":"67 "},{"v":0,"d":"0.00"}]
[]
[{"v":11,"d":"11 "},null,"Plastering",null,"Page",{"v":68,"d":"68 "},{"v":0,"d":"0.00"}]
[]
[{"v":12,"d":"12 "},null,"Tiling",null,"Page",{"v":71,"d":"71 "},{"v":0,"d":"0.00"}]
[]
[{"v":13,"d":"13 "},null,"Plumbing & Drainage",null,"Page",{"v":84,"d":"84 "},{"v":0,"d":"0.00"}]
[]
[{"v":14,"d":"14 "},null,"Paintwork",null,"Page",{"v":88,"d":"88 "},{"v":0,"d":"0.00"}]
[]
[{"v":15,"d":"15 "},null,"External Work",null,"Page",{"v":95,"d":"95 "},{"v":0,"d":"0.00"}]
[]
[{"v":16,"d":"16 "},null,"Budgetary Allowance RATE#",null,"Page",{"v":99,"d":"99 "},{"v":0,"d":"0.00"}]